{"text_format":"1","workbook":"xlsx","n_sheets":15,"sheets":["HiddenSettings","Table of content","Settings","GEO composition","IND composition","2-POS-GEO-IN","2-POS-GEO-OUT","2-POS-IND-IN","2-POS-IND-OUT","2-FLOW-GEO-IN","2-FLOW-GEO-OUT","2-FLOW-IND-IN","2-FLOW-IND-OUT","2-INC-GEO","2-INC-IND"],"not_rendered":{"charts":0,"images":1,"macros":1,"external_links":0,"defined_names":25,"comments":0,"pivot_tables":0},"unopened":[],"bounds":{"document_bytes":16777216,"sheet_cells":100000,"rows_first":2000,"rows_last":500,"rows_between":2000,"halvings":0,"cell_chars":16384,"cell_head_chars":4096},"cells_cut":0,"cells_raw":0,"read":"whole","date_system":"1900"}

{"sheet":"HiddenSettings","index":0,"n_rows":44,"n_cols":22,"rows_kept":44,"cut":false,"hidden":true,"merged":[]}
["Do not make any data changes on this sheet (Internal Reserved Use)"]
[]
[null,null,"Countries","Year","CountryIndex","Currency","Units","Currency Select",null,"Statistical Unit","StatUnitIndex","Valuation Method","Valuation index","Economic activity allocation","Eco Act allocation Index","Settings",null,null,"EcoActCode"]
[null,null,null,null,1,null,"Millions",null,null,null,1,null,1,null,2,{"$f":"IF(CountryIndex=1,\"\",INDEX(C4:C57,CountryIndex,1))","v":""},null,null,null,1]
[null,null,"Australia",2000,2,"AUD",null,"US dollars",null,"Enterprise",null,"Market value",1,"Direct investment enterprise",2,{"$f":"IF(CurrencyIndex=1,\"USD\",INDEX(F4:F79,CountryIndex,1))","v":0},null,null,null,2,"Direct investment enterprise",2]
[null,null,"Austria",{"$f":"D5+1","v":2001},22,"EUR",null,"National currency",null,"Local enterprise group",null,"Historic acquisition cost",null,"Direct investor",2,{"$f":"IF(YearIndex=1,\"\",INDEX(D4:D39,YearIndex,1))","v":2020},null,null,null,3,"Direct investor",1]
[null,null,"Belgium",{"$f":"D6+1","v":2002},null,"EUR",null,null,null,"Unspecified statistical units",null,"Accumulation of FDI equity capital flow",null,null,2,{"$f":"IF(ValuationFlowsIndex=1,\"\",INDEX(L4:L13,ValuationFlowsIndex,1))","v":""}]
[null,null,"Belgium-Luxembourg",2003,null,"EUR",null,null,null,null,null,"Stock market price index applied to accumulated FDI equity capital flow",null,null,null,{"$f":"IF(ValuationPosIndex=1,\"\",INDEX(L4:L13,ValuationPosIndex,1))","v":""}]
[null,null,"Canada",2004,null,"CAD",null,null,null,null,null,"Book value",null,null,null,{"$f":"IF(StatUnitIndex=1,\"\",INDEX(J4:J7,StatUnitIndex,1))","v":""}]
[null,null,"Chile",2005,null,"USD",null,null,null,null,null,"Not allocated/unspecified (including all kinds of valuation methods)",null,null,null,{"$f":"IF(EcoActInflowsIndex=1,\"\",INDEX(N4:N6,EcoActInflowsIndex,1))","v":"Direct investment enterprise"},null,null,{"$f":"VLOOKUP(EcoActInflowsIndex,$T$4:$V$6,3)","v":2}]
[null,null,"Colombia",2006,null,"USD",null,null,null,null,null,null,null,null,null,{"$f":"IF(EcoActOutflowsIndex=1,\"\",INDEX(N4:N6,EcoActOutflowsIndex,1))","v":"Direct investment enterprise"},null,null,{"$f":"VLOOKUP(EcoActOutflowsIndex,$T$4:$V$6,3)","v":2}]
[null,null,"Costa Rica",2007,null,"USD",null,null,null,null,null,null,null,null,null,{"$f":"IF(EcoActInwardIndex=1,\"\",INDEX(N4:N6,EcoActInwardIndex,1))","v":"Direct investment enterprise"},null,null,{"$f":"VLOOKUP(EcoActInwardIndex,$T$4:$V$6,3)","v":2}]
[null,null,"Czech Republic",2008,null,"CZK",null,null,null,null,null,null,null,null,null,{"$f":"IF(EcoActOutwardIndex=1,\"\",INDEX(N4:N6,EcoActOutwardIndex,1))","v":"Direct investment enterprise"},null,null,{"$f":"VLOOKUP(EcoActOutwardIndex,$T$4:$V$6,3)","v":2}]
[null,null,"Denmark",2009,null,"DKK"]
[null,null,"Estonia",2010,null,"EUR"]
[null,null,"Finland",2011,null,"EUR"]
[null,null,"France",2012,null,"EUR"]
[null,null,"Germany",2013,null,"EUR"]
[null,null,"Greece",2014,null,"EUR"]
[null,null,"Hungary",2015,null,"HUF"]
[null,null,"Iceland",2016,null,"ISK"]
[null,null,"Ireland",2017,null,"EUR"]
[null,null,"Israel",{"$f":"D22+1","v":2018},null,"USD"]
[null,null,"Italy",2019,null,"EUR"]
[null,null,"Japan",{"$f":"D24+1","v":2020},null,"JPY"]
[null,null,"Korea",null,null,"KRW"]
[null,null,"Latvia",null,null,"EUR"]
[null,null,"Lithuania",null,null,"EUR"]
[null,null,"Luxembourg",null,null,"EUR"]
[null,null,"Mexico",null,null,"MXN"]
[null,null,"Netherlands",null,null,"EUR"]
[null,null,"New Zealand",null,null,"NZD"]
[null,null,"Norway",null,null,"NOK"]
[null,null,"Poland",null,null,"PLN"]
[null,null,"Portugal",null,null,"EUR"]
[null,null,"Slovak Republic",null,null,"EUR"]
[null,null,"Slovenia",null,null,"EUR"]
[null,null,"Spain",null,null,"EUR"]
[null,null,"Sweden",null,null,"SEK"]
[null,null,"Switzerland",null,null,"CHF"]
[null,null,"Turkey",null,null,"TRL"]
[null,null,"United Kingdom",null,null,"GBP"]
[null,null,"United States",null,null,"USD"]
[null,null,null,null,null,"USD"]

{"sheet":"Table of content","index":1,"n_rows":39,"n_cols":3,"rows_kept":39,"cut":false,"hidden":false,"merged":[[7,1,7,15]]}
[]
[]
[]
[]
[]
[null,"OECD BENCHMARK DEFINITION OF FOREIGN DIRECT INVESTMENT, 4TH EDITION"]
[null,"ELECTRONIC QUESTIONNAIRE 2: FOREIGN DIRECT INVESTMENT STATISTICS ACCORDING TO THE DIRECTIONAL PRINCIPLE - STANDARD SERIES"]
[null,"DIRECTORATE FOR FINANCIAL AND ENTERPRISES AFFAIRS\nInvestment Division"]
[null,"OECD Contact: emilie.kothe@oecd.org. "]
[]
[null,"QUESTIONNAIRES SETTINGS"]
[null,"Settings"]
[]
[null,"STANDARD QUESTIONNAIRES"]
[null,"Questionnaire 2-POS-GEO-IN ","INWARD FOREIGN DIRECT INVESTMENT POSITIONS BY GEOGRAPHICAL ALLOCATION"]
[null,"Questionnaire 2-POS-GEO-OUT ","OUTWARD FOREIGN DIRECT INVESTMENT POSITIONS BY GEOGRAPHICAL ALLOCATION"]
[null,"Questionnaire 2-POS-IND-IN ","INWARD FOREIGN DIRECT INVESTMENT POSITIONS BY INDUSTRY CLASSIFICATION"]
[null,"Questionnaire 2-POS-IND-OUT ","OUTWARD FOREIGN DIRECT INVESTMENT POSITIONS BY INDUSTRY CLASSIFICATION"]
[null,"Questionnaire 2-FLOW-GEO-IN ","FOREIGN DIRECT INVESTMENT INFLOWS BY GEOGRAPHICAL ALLOCATION"]
[null,"Questionnaire 2-FLOW-GEO-OUT ","FOREIGN DIRECT INVESTMENT OUTFLOWS BY GEOGRAPHICAL ALLOCATION"]
[null,"Questionnaire 2-FLOW-IND-IN ","FOREIGN DIRECT INVESTMENT INFLOWS BY INDUSTRY CLASSIFICATION"]
[null,"Questionnaire 2-FLOW-IND-OUT ","FOREIGN DIRECT INVESTMENT OUTFLOWS BY INDUSTRY CLASSIFICATION"]
[null,"Questionnaire 2-INC-GEO","FOREIGN DIRECT INVESTMENT INCOME BY GEOGRAPHICAL ALLOCATION"]
[null,"Questionnaire 2-INC-IND ","FOREIGN DIRECT INVESTMENT INCOME BY INDUSTRY CLASSIFICATION"]
[]
[]
[null,"GEO composition","Includes a description of the geographical aggregates composition"]
[]
[null,"IND composition","Includes a description of the industry sectors in terms of ISIC4 sections and classes"]
[]
[]
[]
[null,"DATA REPORTING TIMELINESS:"]
[null,"At the latest:"]
[]
[null,"FDI transactions (income and financial flows): T+9 after the reference year "]
[]
[]
[null,"FDI positions: T+9 after the reference year"]

{"sheet":"Settings","index":2,"n_rows":53,"n_cols":11,"rows_kept":53,"cut":false,"hidden":false,"merged":[]}
[]
[null,"FOREIGN DIRECT INVESTMENT STATISTICS ACCORDING TO THE DIRECTIONAL PRINCIPLE - STANDARD SERIES"]
[]
[null,"Reporting year:"]
[]
[null,null,"YEAR :",null,null,null,"CURRENT YEAR :",{"$f":"Year","v":2020}]
[]
[null,"Reporting country:"]
[]
[null,null,"COUNTRY :",null,null,null,"COUNTRY:",{"$f":"Country","v":""}]
[]
[null,"Reporting currency:"]
[]
[null,null,"CURRENCY :",null,null,null,"CURRENCY :",{"$f":"Currency","v":0}]
[]
[null,null,"(Data should be reported either in national currency or US dollars)"]
[]
[null,null,"UNITS :","Data should be reported in millions."]
[]
[null,"Statistical Unit"]
[]
[null,null,"STATISTICAL UNIT: ",null,null,null,"STATISTICAL UNIT :",{"$f":"StatUnit","v":""}]
[]
[null,null,"Statistical unit recommended by BMD4: Enterprise"]
[]
[null,"Valuation Method"]
[]
[null,null,"FDI FLOWS:",null,null,null,"Valuation method for FDI flows: ",{"$f":"ValuationFlows","v":""}]
[]
[]
[null,null,"FDI POSITIONS:",null,null,null,"Valuation method for FDI positions: ",{"$f":"ValuationPos","v":""}]
[]
[null,null,"Valuation method recommended by BMD4: Market value (including estimates for unlisted companies)"]
[]
[null,"Economic Activity Allocation"]
[]
[null,null,"INWARD FDI FLOWS:",null,null,null,"Economic activity allocation for inward FDI flows:",{"$f":"EcoActInflows","v":"Direct investment enterprise"}]
[]
[null,null,"OUTWARD FDI FLOWS:",null,null,null,"Economic activity allocation for outward FDI flows:",{"$f":"EcoActOutflows","v":"Direct investment enterprise"}]
[]
[null,null,"INWARD FDI POSITIONS:",null,null,null,"Economic activity allocation for inward FDI positions:",{"$f":"EcoActInward","v":"Direct investment enterprise"}]
[]
[null,null,"OUTWARD FDI POSITIONS:",null,null,null,"Economic activity allocation for outward FDI positions:",{"$f":"EcoActOutward","v":"Direct investment enterprise"}]
[]
[null,null,"Economic activity allocation recommended by BMD4: Direct investment enterprise"]
[]
[]
[null,"Please note alternate conventional cell values"]
[]
[null,"NA",": Data not available",null,null,"Blank ",": when there is no transaction/position (0)"]
[]
[null,"Control codes to be indicated in column 'cc' next to the cell value, when applicable"]
[null,"C",": Confidential",null,null,"N",": Not publishable",null,null,"D",": Secondary Confidentiality"]

{"sheet":"GEO composition","index":3,"n_rows":290,"n_cols":3,"rows_kept":290,"cut":false,"hidden":false,"merged":[[289,0,289,2],[2,4,2,14],[261,0,261,1],[262,0,262,1],[268,0,268,1],[275,0,275,1],[288,0,288,2]]}
["OECD-FDI geographic aggregates composition "]
["Codes","Labels","Composition"]
["W0","WORLD*","E1+F1+A1+S1+O1+W190"]
["W190","World not allocated"]
["E1","EUROPE ","AT + BE + BG + CY + CZ + DE + DK + EE + ES + FI + FR + GB + GR + HR + HU + IE + IT + LT + LU + LV +  MT + NL + PL + PT + RO + SE + SI + SK + CH + IS + LI + NO + AD + AL + BA + BY + FO + GG + GI + IM + JE + XK + MD + MK + RU + SM + TR + UA + VA + ME + RS+ E19"]
["E19","Europe not allocated"]
["AL"," Albania"]
["AD"," Andorra"]
["AT"," Austria*"]
["BY"," Belarus"]
["BE"," Belgium*"]
["BA"," Bosnia and Herzegovina"]
["BG"," Bulgaria*"]
["HR"," Croatia"]
["CY"," Cyprus*,1"]
["CZ"," Czech Republic*"]
["DK"," Denmark*"]
["EE"," Estonia*"]
["FO"," Faroe Islands"]
["FI"," Finland*"]
["FR"," France*"]
["DE"," Germany*"]
["GI"," Gibraltar"]
["GR"," Greece*"]
["GG"," Guernsey"]
["VA"," Holy see (Vatican City State)"]
["HU"," Hungary*"]
["IS"," Iceland*"]
["IE"," Ireland*"]
["IM"," Isle of Man"]
["IT"," Italy*"]
["JE"," Jersey"]
["XK","Kosovo"]
["LV"," Latvia*"]
["LI"," Liechtenstein"]
["LT"," Lithuania*"]
["LU"," Luxembourg*"]
["MK"," Macedonia, the Former Yugoslav Republic of "]
["MT"," Malta"]
["MD"," Moldova"]
["ME"," Montenegro"]
["NL"," Netherlands*"]
["NO"," Norway*"]
["PL"," Poland*"]
["PT"," Portugal*"]
["RO"," Romania*"]
["RU"," Russia*"]
["SM"," San Marino"]
["RS"," Serbia"]
["SK"," Slovakia*"]
["SI"," Slovenia*"]
["ES"," Spain*"]
["SE"," Sweden*"]
["CH"," Switzerland* "]
["TR","Turkey*"]
["UA","Ukraine*"]
["GB"," United Kingdom*"]
["F1","AFRICA* ","DZ + EG + LY + MA + TN + AO + BF + BI + BJ + BW + CD + CF + CG + CI + CM + CV + DJ + ER + ET + GA + GH + GM + GN + GQ + GW + IO + KE + KM + LR + LS + MG + ML + MR + MU + MW + MZ + NA + NE + NG + RW + SC + SD + SH + SL + SN + SO + SS + ST + SZ + TD + TG + TZ + UG + ZA + ZM + ZW  + F19   "]
["F19","Africa not allocated"]
["F4"," Northern Africa","DZ+EG+LY+MA+TN"]
["DZ","Algeria*"]
["EG","Egypt*"]
["LY","Libyan Arab Jamahiriya*"]
["MA","Morocco*"]
["TN","Tunisia*"]
["F2"," Other African countries","AO + BF + BI + BJ + BW + CD + CF + CG + CI + CM + CV + DJ + ER + ET + GA + GH + GM + GN + GQ + GW + IO + KE + KM + LR + LS + MG + ML + MR + MU + MW + MZ + NA + NE + NG + RW + SC + SD + SH + SL + SN + SO + SS + ST + SZ + TD + TG + TZ + UG + ZA + ZM + ZW "]
["AO"," Angola"]
["BJ"," Benin"]
["BW"," Botswana"]
["IO"," British Indian Ocean Territory"]
["BF"," Burkina Faso"]
["BI"," Burundi"]
["CM"," Cameroon"]
["CV"," Cape Verde"]
["CF"," Central African Republic"]
["TD"," Chad"]
["KM"," Comoros"]
["CG"," Congo"]
["CI"," Côte d'Ivoire"]
["CD"," Congo, the Democratic Republic of the "]
["DJ"," Djibouti"]
["GQ"," Equatorial Guinea"]
["ER"," Eritrea"]
["ET"," Ethiopia"]
["GA"," Gabon"]
["GM"," Gambia"]
["GH"," Ghana"]
["GN"," Guinea"]
["GW"," Guinea-Bissau"]
["KE"," Kenya"]
["LS"," Lesotho"]
["LR"," Liberia"]
["MG"," Madagascar"]
["MW"," Malawi"]
["ML"," Mali"]
["MR"," Mauritania"]
["MU"," Mauritius"]
["MZ"," Mozambique"]
["NA"," Namibia"]
["NE"," Niger"]
["NG"," Nigeria*"]
["RW"," Rwanda"]
["SH"," St Helena"]
["ST"," Sao Tome & Principe"]
["SN"," Senegal"]
["SC"," Seychelles"]
["SL"," Sierra Leone"]
["SO"," Somalia"]
["ZA"," South Africa*"]
["SD"," Sudan"]
["SS"," South Sudan"]
["SZ"," Swaziland"]
["TZ"," Tanzania, United Republic of"]
["TG"," Togo"]
["UG"," Uganda"]
["ZM"," Zambia"]
["ZW"," Zimbabwe"]
["A1","AMERICA ","CA + US + GL + AG + AI + AW + BB + BM + BQ + BS + BZ + CR + CU + CW + DM + DO + GD + GT + HN + HT + JM + KN + KY + LC + MS + MX + NI + PA + SV + SX + TC + TT + VC + VG + VI  + AR + BO + BR + CL + CO + EC + FK + GY + PE + PY + SR + UY + VE + A19"]
["A19","America not allocated"]
["A2"," Northern America","CA+US+GL"]
["CA","Canada*"]
["GL","Greenland"]
["US","United States*"]
["A5"," Central America and Caribbean countries","AG + AI + AW + BB + BM + BQ + BS + BZ + CR + CU + CW + DM + DO + GD + GT + HN + HT + JM + KN + KY + LC + MS + MX + NI + PA + SV + SX + TC + TT + VC + VG + VI "]
["AI"," Anguilla"]
["AG"," Antigua and Barbuda"]
["AW"," Aruba"]
["BS"," Bahamas"]
["BB"," Barbados"]
["BZ"," Belize"]
["BM"," Bermuda"]
["BQ"," Bonaire, St Eustatius and Saba"]
["KY"," Cayman Islands"]
["CR"," Costa Rica*"]
["CU"," Cuba"]
["CW"," Curaçao"]
["DM"," Dominica"]
["DO"," Dominican Republic"]
["SV"," El Salvador"]
["GD"," Grenada"]
["GT"," Guatemala"]
["HT"," Haiti"]
["HN"," Honduras"]
["JM"," Jamaica"]
["MX"," Mexico*"]
["MS"," Montserrat"]
["NI"," Nicaragua"]
["PA"," Panama*"]
["KN"," Saint Kitts and Nevis"]
["LC"," Saint Lucia"]
["VC"," Saint Vincent and the Grenadines"]
["SX"," Sint Maarten"]
["TT"," Trinidad and Tobago"]
["TC"," Turks & Caicos Islands"]
["VG"," Virgin Islands, British "]
["VI"," Virgin Islands, U.S."]
["A7"," South America","AR+BO+BR+CL+CO+EC+FK+GY+PE+PY+SR+UY+VE"]
["AR","Argentina*"]
["BO","Bolivia"]
["BR","Brazil*"]
["CL","Chile*"]
["CO","Colombia*"]
["EC","Ecuador"]
["FK","Falkland Islands (Malvinas)"]
["GY","Guyana"]
["PY","Paraguay"]
["PE","Peru*"]
["SR","Suriname"]
["UY","Uruguay*"]
["VE","Venezuela*"]
["S1","ASIA ","AM + AZ + GE + IL + JO + LB + PS + SY + AE + BH + IQ + KW + OM + QA + SA + YE + AF + BD + BN + BT + CN + HK + ID + IN + IR + JP + KG + KH + KP + KR + KZ + LA + LK + MM + MN + MO + MV + MY + NP + PK + PH + SG + TH + TJ + TL + TM + TW + UZ + VN +S19   "]
["S19","Asia not allocated*"]
["S3"," Near and Middle East countries*","AM + AZ + GE + IL + JO + LB + PS + SY + AE + BH + IQ + KW + OM + QA + SA + YE "]
["S35","Gulf Arabian countries","AE+BH+IQ+KW+OM+QA+SA+YE"]
["BH"," Bahrain"]
["IQ"," Iraq"]
["KW"," Kuwait*"]
["OM"," Oman"]
["QA"," Qatar"]
["SA"," Saudi Arabia*"]
["AE"," United Arab Emirates*"]
["YE"," Yemen"]
["S37","Other Near and Middle East","AM+AZ+GE+IL+JO+LB+PS+SY"]
["AM"," Armenia"]
["AZ"," Azerbaijan"]
["GE"," Georgia"]
["IL"," Israel*"]
["JO"," Jordan*"]
["LB"," Lebanon"]
["PS"," Palestine, State of"]
["SY"," Syrian Arab Republic"]
["S6"," Other Asian countries ","AF + BD + BN + BT + CN + HK + ID + IN + IR + JP + KG + KH + KP + KR + KZ + LA + LK + MM + MN + MO + MV + MY + NP + PK + PH + SG + TH + TJ + TL + TM + TW + UZ + VN "]
["AF"," Afghanistan"]
["BD"," Bangladesh"]
["BT"," Bhutan"]
["BN"," Brunei Darussalam"]
["KH"," Cambodia "]
["CN"," China*"]
["HK"," Hong Kong*"]
["IN"," India*"]
["ID"," Indonesia*"]
["IR"," Iran"]
["JP"," Japan*"]
["KZ"," Kazakhstan"]
["KP"," Korea, Democratic People's Republic of (North Korea)"]
["KR"," Korea, Republic of (South Korea)*"]
["KG"," Kyrgyzstan"]
["LA"," Laos"]
["MO"," Macao"]
["MY"," Malaysia*"]
["MV"," Maldives"]
["MN"," Mongolia"]
["MM"," Myanmar"]
["NP"," Nepal"]
["PK"," Pakistan"]
["PH"," Philippines*"]
["SG"," Singapore*"]
["LK"," Sri Lanka"]
["TW"," Chinese Taipei"]
["TJ"," Tajikistan"]
["TH"," Thailand*"]
["TL"," Timor-Leste"]
["TM"," Turkmenistan"]
["UZ"," Uzbekistan"]
["VN"," Viet Nam*"]
["O1","AUSTRALIA, OCEANIA and POLAR REGIONS","O1=AU + FJ + FM + KI + MH + MP + NC + NR + NZ + PF + PG + PN + PW + SB + TO + TV + VU + WF + WS + CC + CX+HM + NF + AS + GU + UM + CK + NU + TK + AQ + BV + GS + TF+ O19  "]
["O19","Oceania and polar regions not allocated"]
["AS","American Samoa"]
["AQ","Antartica"]
["AU","Australia*"]
["BV","Bouvet Island"]
["CX","Christmas Islands"]
["CC","Cocos (Keeling Islands)"]
["CK","Cook Islands"]
["FJ","Fiji"]
["PF","French Polynesia"]
["TF","French Southern and Antarctic Lands"]
["GU","Guam"]
["HM","Heard Island and McDonald Islands"]
["KI","Kiribati"]
["MH","Marshall Islands"]
["FM","Micronesia, Federated States of"]
["NR","Nauru"]
["NC","New Caledonia"]
["NZ","New Zealand*"]
["NU","Niue"]
["NF","Norfolk Island"]
["MP","Northern Mariana Islands"]
["PW","Palau"]
["PG","Papua New Guinea"]
["PN","Pitcairn"]
["WS","Samoa"]
["SB","Solomon Islands"]
["GS","South Georgia and the South Sandwich Islands"]
["TK","Tokelau"]
["TO","Tonga"]
["TV","Tuvalu"]
["UM","US Minor Outlying Islands"]
["VU","Vanuatu"]
["WF","Wallis and Futuna"]
[]
["Economic zones"]
["(A) OECD"]
["P6","OECD37*  (OECD fixed composition 37 members; for reference year 2020)"," AT+AU+BE+CA+CH+CL+CO+CZ+DE+DK+EE+ES+FI+FR+GB+GR+LU+LV+LT+HU+IE+IL+IS+IT+JP+KR+MX+NL+NO+NZ+PL+PT+SE+SI+SK+TR+US                                                                                                                                         "]
["P5","OECD36*  (OECD fixed composition 36 members; for reference years 2018-2019)"," AT+AU+BE+CA+CH+CL+CZ+DE+DK+EE+ES+FI+FR+GB+GR+LU+LV+LT+HU+IE+IL+IS+IT+JP+KR+MX+NL+NO+NZ+PL+PT+SE+SI+SK+TR+US                                                                                                                                         "]
["P4","OECD35*  (OECD fixed composition 35 members; for reference years 2016-2017)"," AT+AU+BE+CA+CH+CL+CZ+DE+DK+EE+ES+FI+FR+GB+GR+LU+LV+HU+IE+IL+IS+IT+JP+KR+MX+NL+NO+NZ+PL+PT+SE+SI+SK+TR+US                                                                                                                                         "]
["P1","OECD34*  (OECD fixed composition 34 members; for reference years 2010-2015)","AT+AU+BE+CA+CH+CL+CZ+DE+DK+EE+ES+FI+FR+GB+GR+LU+HU+IE+IL+IS+IT+JP+KR+MX+NL+NO+NZ+PL+PT+SE+SI+SK+TR+US                                                                                                                                                                                                                                                   "]
["P00","OECD30*  (OECD fixed composition 30 members; for reference years up to 2009)","AT+AU+BE+CA+CH+CZ+DE+DK+ES+FI+FR+GB+GR+LU+HU+IE+IS+IT+JP+KR+MX+NL+NO+NZ+PL+PT+SE+SK+TR+US"]
["(B) EUROPEAN UNION"]
["B6"]
["B6"," EU 27 (without the UK)* for reference years starting from 2020","AT+BE+BG+CY+CZ+DE+DK+EE+ES+FI+FR+GR+HR+HU+IE+IT+LT+LU+LV+MT+NL+PL+PT+RO+SE+SI+SK+4Y+B09  (items 4Y:'All Euopean Community Institutions, Organs and Organisms including ECB and ESM' and item B0: 'EU changing composiion not allocated' are only for European countries, and are not requested separately by the OECD)"]
["B5","EU28* (for reference years 2013-2019)","AT+BE+BG+CY+CZ+DE+DK+EE+ES+FI+FR+GB+GR+HR+HU+IE+IT+LT+LU+LV+MT+NL+PL+PT+RO+SE+SI+SK+4Y+B09  (items 4Y:'All Euopean Community Institutions, Organs and Organisms including ECB and ESM' and item B0: 'EU changing composiion not allocated' are only for European countries, and are not requested separately by the OECD)"]
["B4","EU27* (2007-2012)","AT+BE+BG+CY+CZ+DE+DK+EE+ES+FI+FR+GB+GR+HU+IE+IT+LT+LU+LV+MT+NL+PL+PT+RO+SE+SI+SK+4Y+B09  (items 4Y:'All Euopean Community Institutions, Organs and Organisms including ECB and ESM' and item B0: 'EU changing composiion not allocated' are only for European countries, and are not requested separately by the OECD)"]
["B3","EU25* (2004-2006)","AT+BE+CY+CZ+DE+DK+EE+ES+FI+FR+GB+GR+HU+IE+IT+LT+LU+LV+MT+NL+PL+PT+SE+SI+SK+4Y+B09  (items 4Y:'All Euopean Community Institutions, Organs and Organisms including ECB and ESM' and item B0: 'EU changing composiion not allocated' are only for European countries, and are not requested separately by the OECD)"]
["B2","EU15* (until end 2003)","AT+BE+DE+DK+ES+FI+FR+GB+GR+IE+IT+LU+NL+PL+SE+4Y+B09  (items 4Y:'All Euopean Community Institutions, Organs and Organisms including ECB and ESM' and item B0: 'EU changing composiion not allocated' are only for European countries, and are not requested separately by the OECD)"]
["(C) OTHER ECONOMIC AND GEOGRAPHIC ZONES"]
["R4","ASEAN (Association of South East Asian Nations)*","BN + ID + KH + LA + MM + MY + PH + SG + TH + VN (10 countries)"]
["R220","G20 countries excl. EU*","R221+R222"]
["R221","G20 OECD countries*","AU+CA+DE+FR+GB+IT+JP+KR+MX+TR+US (11 countries)"]
["R222","G20 Non-OECD ctr.*","AR+BR+CN+IN+ID+RU+SA+ZA (8 countries)"]
["F98","MENA (Middle east and North Africa countries)*","AE+BH+DJ+DZ+EG+IQ+JO+KW+LB+LY+MA+OM+PS+QA+SA+SY+TN+YE (18 countries)"]
["R25","Total Official Development Assistance (ODA) recipients*","TR + RS + BA + ME + MK + AL + UA + BY + MD + DZ + LY + MA + TN + EG + ZA + AO + BW + BI + CM + CV + CF + TD + KM + CG + CD + BJ + ET + GA + GM + GH + GN + GW + GQ + CI + KE + LS + LR + MG + MW + ML + MR + MU + MZ + NE + NG + ZW + RW + ST + SN + SC + ER + SL + SO + DJ + NA + SH + SD + SS + SZ + TZ + TG + UG + BF + ZM + CR + CU + DO + SV + GT + HT + HN + BZ + JM + MX + NI + PA +  AG + DM + GD +  LC + VC + MS + AR + BO + BR + CL + CO + EC + GY + PY + PE + SR + UY + VE + IR + IQ + JO + PS + LB + SY + YE + AM + AZ + GE + KZ + KG + TJ + TM + UZ + AF + BT + MM + LK + IN + MV + NP + PK + BD + KH + CN + ID + KP + LA + MY + MN + PH + TH + TL + VN + CK + FJ + KI + NR + VU + NU + MH + FM + PW + PG + SB + TK + TO + TV + WF + WS + XK (146 countries)"]
["R251","ODA recipients -Europe*","TR + RS + BA + ME + MK + AL + UA + BY + MD + XK (10 countries)"]
["R252","ODA recipients-Africa*","DZ + LY + MA + TN + EG + ZA + AO + BW + BI + CM + CV + CF + TD + KM + CG + CD + BJ + ET + GA + GM + GH + GN + GW + GQ + CI + KE + LS + LR + MG + MW + ML + MR + MU + MZ + NE + NG + ZW + RW + ST + SN + SC + ER + SL + SO + DJ + NA + SH + SD + SS + SZ + TZ + TG + UG + BF + ZM (55 countries)"]
["R253","ODA recipients-America*","CR + CU + DO + SV + GT + HT + HN + BZ + JM + MX + NI + PA + AG + DM + GD +  LC + VC + MS + AR + BO + BR + CL + CO + EC + GY + PY + PE + SR + UY + VE (30 countries)"]
["R254","ODA recipients-Asia*","IR + IQ + JO + PS + LB + SY + YE + AM + AZ + GE + KZ + KG + TJ + TM + UZ + AF + BT + MM + LK + IN + MV + NP + PK + BD + KH + CN + ID + KP + LA + MY + MN + PH + TH + TL + VN (35 countries)"]
["R255","ODA recipients-Oceania*","CK + FJ + KI + NR + VU + NU + MH + FM + PW + PG + SB + TK + TO + TV + WF + WS (16 countries)"]
[]
["*: Priority items to avoid when flagging data for secondary confidentiality. If the secondary confidentiality checking exercise is too burdensome for reporting the full GEO breakdown for FDI instruments and for series of SPEs/excluding resident SPE, the priority items should be reported while the other items can be flagged as non-publishable, unless they play a significant role in total FDI. "]
["1: Footnote by Turkey:\n The information in this document with reference to “Cyprus” relates to the southern part of the Island. There is no single authority representing both Turkish and Greek Cypriot people on the Island. Turkey recognizes the Turkish Republic of Northern Cyprus (TRNC). Until a lasting and equitable solution is found within the context of United Nations, Turkey shall preserve its position concerning the “Cyprus” issue. \n Footnote by all the European Union Member States of the OECD and the European Union:\n The Republic of Cyprus is recognized by all members of the United Nations with the exception of Turkey. The information in this document relates to the area under the effective control of the Government of the Republic of Cyprus.\nFootnote by Turkey:\n The information in this document with reference to “Cyprus” relates to the southern part of the Island. There is no single authority representing both Turkish and Greek Cypriot people on the Island. Turkey recognizes the Turkish Republic of Northern Cyprus (TRNC). Until a lasting and equitable solution is found within the context of United Nations, Turkey shall preserve its position concerning the “Cyprus” issue. \n Footnote by all the European Union Member States of the OECD and the European Union:\n The Republic of Cyprus is recognized by all members of the United Nations with the exception of Turkey. The information in this document relates to the area under the effective control of the Government of the Republic of Cyprus.\n"]

{"sheet":"IND composition","index":4,"n_rows":88,"n_cols":3,"rows_kept":88,"cut":false,"hidden":false,"merged":[]}
["OECD-FDI Industry classification (ISIC4)"]
["Codes","Labels","ISIC4"]
["A","AGRICULTURE, FORESTRY AND FISHING (Section A)","sec A"]
["B","MINING AND QUARRYING (Section B)","sec B"]
["B06_09","Of which:      Extraction of crude petroleum and gas; mining support services","div 06, 09"]
["A_B","TOTAL PRIMARY SECTOR (Sections A and B)","secA + secB"]
["C","MANUFACTURING (Section C)","sec C"]
["C10T12","Food products, beverage and tobacco products","div 10, 11, 12"]
["C13_14","Textiles and wearing apparel","div 13, 14"]
["C16T18","Manufacture of wood, paper, and their products; printing and reproduction of recorded media","div 16, 17, 18"]
["C13T18X15","[TOTAL textiles + wood activities ](C13_14+C16T18)","div 13, 14, 16, 17, 18"]
["C19","Coke and refined petroleum products","div 19"]
["C20","Manufacture of chemicals and chemical products ","div 20"]
["C21","Pharmaceuticals products and preparation ","div 21"]
["C22","Rubber and plastic products","div 22"]
["C19T22","[TOTAL petroleum, chemical, pharmaceuticals, rubber and plastic products] (C19+C20+C21+C22) ","div 19, 20, 21, 22"]
["C24_25","Basic metal and fabricated metal products ","div 24, 25"]
["C26","Computer, electronic and optical products ","div 26"]
["C262"," Of which: Computers and peripheral equipment","group 26.2"]
["C263_264","                   Communication equipment and consumer electronics","groups 26.3 and 26.4"]
["C265_266","                   Instrument and appliances for measuring, testing and navigation; watches and clock; irradiation, electromedical and electrotherapeutic equipment","div 26.5 and 26.6"]
["C28","Machinery and equipment n. e. c","div 28"]
["C24T28X27","[TOTAL metal, computer and machinery] (C24_C25+C26+C28)","div 24, 25, 26, 28"]
["C29","Motor vehicles, trailers and semi-trailers","div 29"]
["C30","Other transport equipments","div 30"]
["C303","Of which:   Manufacture of aircraft and spacecraft","group 30.3"]
["C29_30","[TOTAL vehicles and other transport equipment] (C29+C30)","div 29, 30"]
["C_OTH","Other manufacturing","div 15, 23, 27, 31, 32, 33"]
["D35","ELECTRICITY, GAS, STEAM AND AIR CONDITIONING SUPPLY (Section D)","sec D"]
["E","WATER SUPPLY, SEWERAGE, WASTE MANAGEMENT AND REMEDIATION ACTIVITIES (Section E)","sec E"]
["E36","Water collection, treatment and supply","div 36"]
["E37T39","Sewerage, waste management and remediation activities  ","div 37, 38, 39"]
["F","CONSTRUCTION (Section F)  ","sec F"]
["G","WHOLESALE AND RETAILTRADE; REPAIR OF MOTOR VEHICLES AND MOTOR CYCLES (Section G) ","sec G"]
["G45","Wholesale and retail trade and repair of motor vehicles and motorcycles","div 45"]
["G46","Wholesale trade, except of motor vehicles and motor cycles","div 46"]
["G47","Retail trade, except of motor vehicles and motor cycles ","div 47"]
["H","TRANSPORTATION AND STORAGE (Section H) ","sec H"]
["H49","Land transport and transport via pipelines","div 49"]
["H50","Water transport","div 50"]
["H51","Air transport ","div 51"]
["H52","Warehousing and support activities for transportation ","div 52"]
["HX53","[TOTAL transport and storage] (H49+H50+H51+H52)","div 49, 50, 51, 52"]
["H53","Post and courier activities ","div 53"]
["I","ACCOMODATION AND FOOD SERVICE ACTIVITIES (Section I)","sec I"]
["J","INFORMATION AND COMMUNICATION (Section J)  ","sec J"]
["J59_60","Motion picture, video and TV programme production, sound recording and music publishing activities; programming and broadcasting activities ","div 59, 60"]
["J61","Telecommunications ","div 61"]
["J58_62_63","Other information and communication activities ","div 58, 62, 63"]
["K","FINANCIAL AND INSURANCE ACTIVITIES (Section K)  ","sec K"]
["K64","Financial services activities, except insurance and pension funding ","div 64"]
["K641","Of which:   Monetary intermediation ","group 64,1"]
["K642","Activities of holding companies ","group 64,2"]
["K643","  Trusts, funds and similar financial entities","group 64,3"]
["K65","Insurance, reinsurance and pension funding, except compulsory social security","div 65"]
["K66","Activities auxiliary to financial services and insurance activities","div 66"]
["L","REAL ESTATE ACTIVITIES (Section L) ","sec L"]
["M","PROFESSIONAL, SCIENTIFIC AND TECHNICAL ACTIVITIES (Section M)","sec M"]
["M69","Legal and accounting activities","div 69"]
["M691","     Legal activities","group 69,1"]
["M692","     Accounting, bookkeeping and auditing activities, tax consultancy","group 69,2"]
["M70","Activities of head offices; management and consultancy activities ","div 70"]
["M701","      Activities of head offices","group 70,1"]
["M702","      Management consultancy activities","group 70,2"]
["M71","Architecture and Engineering activities; technical testing and analysis","div 71"]
["M72","Scientific research and development","div 72"]
["M73","Advertising and market research","div 73"]
["M731","     Advertising","group 73,1"]
["M732","     Market research and public opinion polling","group 73,2"]
["M74_75","Other professional, scientific and technical activities","div 74, 75"]
["N","ADMINISTRATIVE AND SUPPORT SERVICE ACTIVITIES (Section N)","sec N"]
["N77","Rental and leasing activities","div 77"]
["N78T82","Other administrative and support services activities","div 78, 79, 80, 81, 82"]
["N79"," Of which: Travel agency, tour operator reservation service and related activities","div 79"]
["P85","EDUCATION (Section P)  ","sec P"]
["Q","HUMAN HEALTH AND SOCIAL WORK ACTIVITIES (Section Q)","sec Q"]
["R","ARTS, ENTERTAINMENT AND RECREATION (Section R)","sec R"]
["R90","Creative, arts and entertainment activities","div 90"]
["R91","Libraries, archives, museums and other cultural activities","div 91"]
["R92_93","Sports activities and amusement and recreation activities; gambling and betting activities","div 92, 93"]
["O_T_U","Public administration; activities of households and of extraterritorial organisations (Sections O,T, U)","sec O, T and U"]
["S","OTHER SERVICE ACTIVITIES (Section S)","sec S"]
["S94","Activities of membership organisations","div 94"]
["S95_96","Repair of computers and personal and household goods, other services","div 95, 96"]
["GTU","TOTAL SERVICES (Sections G to U)","sec G, H, I, J, K, L, M, N O, P, Q, R, S, T, U"]
["_X","Unallocated"]
["PRV_RE","Priv. purchase & sales of real estate"]
["FDI_T","TOTAL (All FDI activities)","Sec A to U +NAL+PRV_RE"]

{"sheet":"2-POS-GEO-IN","index":5,"n_rows":294,"n_cols":56,"rows_kept":294,"cut":false,"hidden":false,"merged":[[0,1,0,24],[3,54,3,55],[3,32,3,33],[3,34,3,35],[3,36,3,37],[3,38,3,39],[3,40,3,41],[1,2,1,19],[1,20,1,37],[2,20,2,25],[2,26,2,31],[2,32,2,37],[5,12,5,13],[5,14,5,15],[5,16,5,17],[2,2,2,7],[2,14,2,19],[2,8,2,13],[3,2,3,3],[3,4,3,5],[3,6,3,7],[3,8,3,9],[3,10,3,11],[5,18,5,19],[3,14,3,15],[5,48,5,49],[3,16,3,17],[3,42,3,43],[3,44,3,45],[3,46,3,47],[5,34,5,35],[5,30,5,31],[3,18,3,19],[3,20,3,21],[3,22,3,23],[3,24,3,25],[3,26,3,27],[3,28,3,29],[5,24,5,25],[5,50,5,51],[2,44,2,49],[5,32,5,33],[5,36,5,37],[1,38,1,55],[2,50,2,55],[5,44,5,45],[5,46,5,47],[5,38,5,39],[2,38,2,43],[5,40,5,41],[5,42,5,43],[5,54,5,55],[5,52,5,53],[3,50,3,51],[3,52,3,53]]}
["                        ","QUESTIONNAIRE 2-POS-GEO-IN  INWARD Direct Investment Positions by geographical allocation (Directional Principle).                                                                                                                                                                                                                                                                                                                                                                                                                                                                                                                                                                       Total inward FDI position series should be reported with the full geographical breakdown. Items marked with * are to be avoided in priority when flagging data for secondary confidentiality. Also, when secondary confidentiality process becomes too burdensome to report the full geographical breakdown for series of FDI instruments and of series excluding/of resident SPEs, those priority items are to be reported in priority while other items can be flagged as non publishable.",null,null,null,null,null,null,null,null,null,null,null,null,null,null,null,null,null,null,null,null,null,null,null,null,null,null,null,null,null,null,null,null,null,null,null,null,null,null,null,null,null,null,null,null,null,null,null,null,null,null,null,null,"OECD"]
["COUNTRY:",{"$f":"Country","v":""},"EQUITY & REINVESTED EARNINGS (F5)",null,null,null,null,null,null,null,null,null,null,null,null,null,null,null,null,null,"DEBT INSTRUMENTS (FL)",null,null,null,null,null,null,null,null,null,null,null,null,null,null,null,null,null,"TOTAL FDI INWARD POSITION (F)"]
["YEAR:  ",{"$f":"Year","v":2020},"Excl. Res SPEs (ROU)\n",null,null,null,null,null,"Res SPEs (RSP)\n",null,null,null,null,null,"All Entities (ALL)\n",null,null,null,null,null,"Excl. Res SPEs (ROU)\n",null,null,null,null,null,"Res SPEs (RSP)\n",null,null,null,null,null,"All Entities (ALL)\n",null,null,null,null,null,"Excl. Res SPEs (ROU)\n",null,null,null,null,null,"Res SPEs (RSP)\n",null,null,null,null,null,"All Entities (ALL)\n"]
["CURRENCY:  ",{"$f":"Currency","v":0},"Liabilities",null,"Assets",null,"Net Inward",null,"Liabilities",null,"Assets",null,"Net Inward",null,"Liabilities",null,"Assets",null,"Net Inward",null,"Liabilities",null,"Assets",null,"Net Inward",null,"Liabilities",null,"Assets",null,"Net Inward",null,"Liabilities",null,"Assets",null,"Net Inward",null,"Liabilities",null,"Assets",null,"Net Inward",null,"Liabilities",null,"Assets",null,"Net Inward",null,"Liabilities",null,"Assets",null,"Net Inward"]
["UNITS:           ","MILLIONS","L",null,"A",null,"NI",null,"L",null,"A",null,"NI",null,"L",null,"A",null,"NI",null,"L",null,"A",null,"NI",null,"L",null,"A",null,"NI",null,"L",null,"A",null,"NI",null,"L",null,"A",null,"NI",null,"L",null,"A",null,"NI",null,"L",null,"A",null,"NI"]
["STATISTICAL UNIT:",{"$f":"StatUnit","v":""},"(1)",null,"(2)",null,"(3)                                                   (1-2)",null,"(4)",null,"(5)",null,"(6)                                                    (4-5)",null,"(7)                                                 (1+4)",null,"(8)                                      (2+5)",null,"(9)                                                 (3+6)",null,"(10)",null,"(11)",null,"(12)                                              (10-11)",null,"(13)",null,"(14)",null,"(15)                                              (13-14)",null,"(16)                                               (10+13)",null,"(17)                                              (11+14)",null,"(18)                                               (12+15)",null,"(19)                                               (1+10)",null,"(20)                                               (2+11)",null,"(21)                                               (3+12)",null,"(22)                                              (4+13)",null,"(23)                                              (5+14)",null,"(24)                                              (6+15)",null,"(25)                                               (19+22)",null,"(26)                                                (20+23)",null,"(27)                                              (21+24)"]
["VALUATION:",{"$f":"ValuationPos","v":""},null,"cc",null,"cc",null,"cc",null,"cc",null,"cc",null,"cc",null,"cc",null,"cc",null,"cc",null,"cc",null,"cc",null,"cc",null,"cc",null,"cc",null,"cc",null,"cc",null,"cc",null,"cc",null,"cc",null,"cc",null,"cc",null,"cc",null,"cc",null,"cc",null,"cc",null,"cc",null,"cc"]
["W0","WORLD*"]
["W190","World not allocated"]
["E1","EUROPE "]
["E19","Europe not allocated"]
["AL"," Albania"]
["AD"," Andorra"]
["AT"," Austria*"]
["BY"," Belarus"]
["BE"," Belgium*"]
["BA"," Bosnia and Herzegovina"]
["BG"," Bulgaria*"]
["HR"," Croatia"]
["CY"," Cyprus*,1"]
["CZ"," Czech Republic*"]
["DK"," Denmark*"]
["EE"," Estonia*"]
["FO"," Faroe Islands"]
["FI"," Finland*"]
["FR"," France*"]
["DE"," Germany*"]
["GI"," Gibraltar"]
["GR"," Greece*"]
["GG"," Guernsey"]
["VA"," Holy see (Vatican City State)"]
["HU"," Hungary*"]
["IS"," Iceland*"]
["IE"," Ireland*"]
["IM"," Isle of Man"]
["IT"," Italy*"]
["JE"," Jersey"]
["XK","Kosovo"]
["LV"," Latvia*"]
["LI"," Liechtenstein"]
["LT"," Lithuania*"]
["LU"," Luxembourg*"]
["MK"," Macedonia, the Former Yugoslav Republic of "]
["MT"," Malta"]
["MD"," Moldova"]
["ME"," Montenegro"]
["NL"," Netherlands*"]
["NO"," Norway*"]
["PL"," Poland*"]
["PT"," Portugal*"]
["RO"," Romania*"]
["RU"," Russia*"]
["SM"," San Marino"]
["RS"," Serbia"]
["SK"," Slovakia*"]
["SI"," Slovenia*"]
["ES"," Spain*"]
["SE"," Sweden*"]
["CH"," Switzerland* "]
["TR","Turkey*"]
["UA","Ukraine*"]
["GB"," United Kingdom*"]
["R1","Belgum-Luxembourg (until end 2002)"]
["CS","Serbia and Montenegro (until end 2006)"]
["F1","AFRICA* "]
["F19","Africa not allocated"]
["F4","   Northern Africa"]
["DZ","Algeria*"]
["EG","Egypt*"]
["LY","Libyan Arab Jamahiriya*"]
["MA","Morocco*"]
["TN","Tunisia*"]
["F2"," Other African countries"]
["AO"," Angola"]
["BJ"," Benin"]
["BW"," Botswana"]
["IO"," British Indian Ocean Territory"]
["BF"," Burkina Faso"]
["BI"," Burundi"]
["CM"," Cameroon"]
["CV"," Cape Verde"]
["CF"," Central African Republic"]
["TD"," Chad"]
["KM"," Comoros"]
["CG"," Congo"]
["CI"," Côte d'Ivoire"]
["CD"," Congo, the Democratic Republic of the "]
["DJ"," Djibouti"]
["GQ"," Equatorial Guinea"]
["ER"," Eritrea"]
["ET"," Ethiopia"]
["GA"," Gabon"]
["GM"," Gambia"]
["GH"," Ghana"]
["GN"," Guinea"]
["GW"," Guinea-Bissau"]
["KE"," Kenya"]
["LS"," Lesotho"]
["LR"," Liberia"]
["MG"," Madagascar"]
["MW"," Malawi"]
["ML"," Mali"]
["MR"," Mauritania"]
["MU"," Mauritius"]
["MZ"," Mozambique"]
["NA"," Namibia"]
["NE"," Niger"]
["NG"," Nigeria*"]
["RW"," Rwanda"]
["SH"," St Helena"]
["ST"," Sao Tome & Principe"]
["SN"," Senegal"]
["SC"," Seychelles"]
["SL"," Sierra Leone"]
["SO"," Somalia"]
["ZA"," South Africa*"]
["SD"," Sudan"]
["SS"," South Sudan"]
["SZ"," Swaziland"]
["TZ"," Tanzania, United Republic of"]
["TG"," Togo"]
["UG"," Uganda"]
["ZM"," Zambia"]
["ZW","Zimbabwe"]
["A1","AMERICA "]
["A19","America not allocated"]
["A2","   Northern America"]
["CA","      Canada*"]
["GL","      Greenland"]
["US","      United States*"]
["A5","   Central America and Caribbean countries"]
["AI","      Anguilla"]
["AG","      Antigua and Barbuda"]
["AW","      Aruba"]
["BS","      Bahamas"]
["BB","      Barbados"]
["BZ","      Belize"]
["BM","      Bermuda"]
["BQ","      Bonaire, Saint Eustatius and Saba (from 2011 onwards)"]
["KY","      Cayman Islands"]
["CR","      Costa Rica*"]
["CU","      Cuba"]
["CW","      Curaçao (from 2011 onwards)"]
["DM","      Dominica"]
["DO","      Dominican Republic"]
["SV","      El Salvador"]
["GD","      Grenada"]
["GT","      Guatemala"]
["HT","      Haiti"]
["HN","      Honduras"]
["JM","      Jamaica"]
["MX","      Mexico* "]
["MS","      Montserrat"]
["NI","      Nicaragua"]
["PA","      Panama*"]
["KN","      Saint Kitts and Nevis"]
["LC","      Saint Lucia"]
["VC","      Saint Vincent and the Grenadines"]
["SX","      Sint Maarten (from 2011 onwards)"]
["TT","      Trinidad and Tobago"]
["TC","      Turks and Caicos Islands"]
["VG","      Virgin Islands, British"]
["VI","      Virgin Islands, U.S."]
["AN","      Netherlands Antilles (until end 2010)"]
["A7","   South America"]
["AR","      Argentina*"]
["BO","      Bolivia"]
["BR","      Brazil*"]
["CL","      Chile*"]
["CO","      Colombia*"]
["EC","      Ecuador"]
["FK","      Falkland Islands (Malvinas)"]
["GY","      Guyana"]
["PY","      Paraguay"]
["PE","      Peru*"]
["SR","      Suriname"]
["UY","      Uruguay*"]
["VE","      Venezuela*"]
["S1","ASIA "]
["S19","Asia not allocated"]
["S3","   Near and Middle East countries*"]
["S35","      Gulf Arabian countries"]
["BH","         Bahrain"]
["IQ","         Iraq"]
["KW","         Kuwait*"]
["OM","         Oman"]
["QA","         Qatar"]
["SA","         Saudi Arabia*"]
["AE","         United Arab Emirates*"]
["YE","         Yemen"]
["S37","      Other Near and Middle East countries"]
["AM","         Armenia"]
["AZ","         Azerbaijan"]
["GE","         Georgia"]
["IL","         Israel*"]
["JO","         Jordan*"]
["LB","         Lebanon"]
["PS","         Palestinian Territory, Occupied"]
["SY","         Syrian Arab Republic"]
["S6","Other Asian countries"]
["AF","      Afghanistan"]
["BD","      Bangladesh"]
["BT","      Bhutan"]
["BN","      Brunei Darussalam"]
["KH","      Cambodia (Kampuchea)"]
["CN","      China*"]
["HK","      Hong Kong, China*"]
["IN","      India*"]
["ID","      Indonesia*"]
["IR","      Iran, Islamic Republic of"]
["JP","      Japan*"]
["KZ","      Kazakhstan"]
["KP","      Korea, Democratic People's Republic of (North Korea)"]
["KR","      Korea, Republic of (South Korea)*"]
["KG","      Kyrgyzstan"]
["LA","      Lao People's Democratic Republic"]
["MO","      Macao"]
["MY","      Malaysia*"]
["MV","      Maldives"]
["MN","      Mongolia"]
["MM","      Myanmar"]
["NP","      Nepal"]
["PK","      Pakistan"]
["PH","      Philippines*"]
["SG","      Singapore*"]
["LK","      Sri Lanka"]
["TW","      Chinese Taipei"]
["TJ","      Tajikistan"]
["TH","      Thailand*"]
["TL","      Timor-Leste"]
["TM","      Turkmenistan"]
["UZ","      Uzbekistan"]
["VN","      Viet Nam*"]
["O1","AUSTRALIA, OCEANIA & POLAR REGIONS"]
["O19","Oceania & Polar regions not allocated"]
["AS","American Samoa"]
["AQ","Antarctica"]
["AU","Australia*"]
["BV","Bouvet Island"]
["CX","Christmas Islands"]
["CC","Cocos Islands"]
["CK","Cook Islands"]
["FJ","Fiji"]
["PF","French Polynesia"]
["TF","French Southern Territories"]
["GU","Guam"]
["HM","Heard islands and Mc Donald islands"]
["KI","Kiribati"]
["MH","Marshall Islands"]
["FM","Micronesia, Federated States of"]
["NR","Nauru"]
["NC","New Caledonia"]
["NZ","New Zealand*"]
["NU","Niue"]
["NF","Norfolk Island"]
["MP","Northern Mariana Islands"]
["PW","Palau"]
["PG","Papua New Guinea"]
["PN","Pitcairn"]
["WS","Samoa"]
["SB","Solomon Islands"]
["GS","South Georgia  and the South Sandwich Islands"]
["TK","Tokelau"]
["TO","Tonga"]
["TV","Tuvalu"]
["UM","US Minor Outllying islands"]
["VU","Vanuatu"]
["WF","Wallis and Futuna"]
["ECONOMIC AND MONETARY ZONES"]
["P6","OECD37*  (for 2020)"]
["P5","OECD36*  (for 2018-2019)"]
["P4","OECD35*  (for 2016-2017)"]
["P1","OECD34*  (for 2010-2015)"]
["P00","OECD30*  (until 2009 only)"]
["B6","EU27 (without the United Kingdom)* (from 2020)"]
["B5","EU28* (for 2013-2019)"]
["B4","EU27* (for 2007-2012)"]
["B3","EU25* (for 2004-2006 only)"]
["B2","EU15* (until 2003 only)"]
["R4","ASEAN*"]
["R220","G20 countries*"]
["R221","G20 OECD countries*"]
["R222","G20 Non-OECD ctr.*"]
["F98","MENA (Middle East and North Africa countries)*"]
["R25","Total Official Development Assistance (ODA) recipients*"]
["R251","ODA recipients -Europe*"]
["R252","ODA recipients-Africa*"]
["R253","ODA recipients-America*"]
["R254","ODA recipients-Asia*"]
["R255","ODA recipients-Oceania*"]
["[1] Footnote by Turkey:\n The information in this document with reference to “Cyprus” relates to the southern part of the Island. There is no single authority representing both Turkish and Greek Cypriot people on the Island. Turkey recognizes the Turkish Republic of Northern Cyprus (TRNC). Until a lasting and equitable solution is found within the context of United Nations, Turkey shall preserve its position concerning the “Cyprus” issue. \n Footnote by all the European Union Member States of the OECD and the European Union:\n The Republic of Cyprus is recognized by all members of the United Nations with the exception of Turkey. The information in this document relates to the area under the effective control of the Government of the Republic of Cyprus.\nFootnote by Turkey:\n The information in this document with reference to “Cyprus” relates to the southern part of the Island. There is no single authority representing both Turkish and Greek Cypriot people on the Island. Turkey recognizes the Turkish Republic of Northern Cyprus (TRNC). Until a lasting and equitable solution is found within the context of United Nations, Turkey shall preserve its position concerning the “Cyprus” issue. \n Footnote by all the European Union Member States of the OECD and the European Union:\n The Republic of Cyprus is recognized by all members of the United Nations with the exception of Turkey. The information in this document relates to the area under the effective control of the Government of the Republic of Cyprus.\n"]
[]
["* Priority items to avoid when flagging data for secondary confidentiality. If the secondary confidentiality checking exercise is too burdensome for reporting the full GEO breakdown for FDI instruments and for series of SPEs/excluding resident SPE, the priority items should be reported while the other items can be flagged as non-publishable, unless they play a significant role in total FDI. "]
["Cells highlighted in grey are secondary priority"]

{"sheet":"2-POS-GEO-OUT","index":6,"n_rows":294,"n_cols":56,"rows_kept":294,"cut":false,"hidden":false,"merged":[[0,1,0,24],[3,52,3,53],[3,48,3,49],[3,42,3,43],[3,44,3,45],[3,46,3,47],[3,50,3,51],[3,22,3,23],[3,24,3,25],[3,26,3,27],[3,28,3,29],[3,32,3,33],[3,30,3,31],[3,14,3,15],[3,12,3,13],[3,16,3,17],[3,18,3,19],[3,20,3,21],[3,2,3,3],[3,4,3,5],[3,6,3,7],[3,8,3,9],[3,10,3,11],[5,30,5,31],[5,32,5,33],[5,34,5,35],[5,36,5,37],[5,38,5,39],[2,50,2,55],[2,32,2,37],[2,38,2,43],[5,54,5,55],[5,52,5,53],[5,42,5,43],[5,44,5,45],[5,46,5,47],[5,48,5,49],[5,50,5,51],[5,40,5,41],[3,34,3,35],[3,36,3,37],[3,38,3,39],[3,40,3,41],[3,54,3,55],[5,18,5,19],[5,24,5,25],[1,2,1,19],[1,20,1,37],[1,38,1,55],[2,2,2,7],[2,8,2,13],[2,14,2,19],[2,20,2,25],[2,26,2,31],[5,2,5,3],[5,4,5,5],[5,12,5,13],[5,14,5,15],[5,16,5,17],[2,44,2,49]]}
["                        ","QUESTIONNAIRE 2-POS-GEO-OUT  OUTWARD Direct Investment Positions by geographical allocation (Directional Principle).                                                                                                                                                                                                                                                                                                                                                                                                                                                                                                                                                                       Total outward FDI position series should be reported with the full geographical breakdown. Items marked with * are to be avoided in priority when flagging data for secondary confidentiality. Also, when secondary confidentiality process becomes too burdensome to report the full geographical breakdown for series of FDI instruments and of series excluding/of resident SPEs, those priority items are to be reported in priority while other items can be flagged as non publishable.",null,null,null,null,null,null,null,null,null,null,null,null,null,null,null,null,null,null,null,null,null,null,null,null,null,null,null,null,null,null,null,null,null,null,null,null,null,null,null,null,null,null,null,null,null,null,null,null,null,null,null,null,"OECD"]
["COUNTRY:",{"$f":"Country","v":""},"EQUITY & REINVESTED EARNINGS (F5)",null,null,null,null,null,null,null,null,null,null,null,null,null,null,null,null,null,"DEBT INSTRUMENTS (FL)",null,null,null,null,null,null,null,null,null,null,null,null,null,null,null,null,null,"TOTAL FDI OUTWARD POSITION (F)"]
["YEAR:  ",{"$f":"Year","v":2020},"Excl. Res SPEs (ROU)\n",null,null,null,null,null,"Res SPEs (RSP)\n",null,null,null,null,null,"All Entities (ALL)\n",null,null,null,null,null,"Excl. Res SPEs (ROU)\n",null,null,null,null,null,"Res SPEs (RSP)\n",null,null,null,null,null,"All Entities (ALL)\n",null,null,null,null,null,"Excl. Res SPEs (ROU)\n",null,null,null,null,null,"Res SPEs (RSP)\n",null,null,null,null,null,"All Entities (ALL)\n"]
["CURRENCY:  ",{"$f":"Currency","v":0},"Assets",null,"Liabilities",null,"Net outward",null,"Assets",null,"Liabilities",null,"Net outward",null,"Assets",null,"Liabilities",null,"Net outward",null,"Assets",null,"Liabilities",null,"Net outward",null,"Assets",null,"Liabilities",null,"Net outward",null,"Assets",null,"Liabilities",null,"Net outward",null,"Assets",null,"Liabilities",null,"Net outward",null,"Assets",null,"Liabilities",null,"Net outward",null,"Assets",null,"Liabilities",null,"Net outward"]
["UNITS:           ","MILLIONS","A",null,"L",null,"NO",null,"A",null,"L",null,"NO",null,"A",null,"L",null,"NO",null,"A",null,"L",null,"NO",null,"A",null,"L",null,"NO",null,"A",null,"L",null,"NO",null,"A",null,"L",null,"NO",null,"A",null,"L",null,"NO",null,"A",null,"L",null,"NO"]
["STATISTICAL UNIT:",{"$f":"StatUnit","v":""},"(1)",null,"(2)",null,"(3)                                                 (1-2)",null,"(4)",null,"(5)",null,"(6)                                                    (4-5)",null,"(7)                                                 (1+4)",null,"(8)                                      (2+5)",null,"(9)                                                 (3+6)",null,"(10)",null,"(11)",null,"(12)                                              (10-11)",null,"(13)",null,"(14)",null,"(15)                                              (13-14)",null,"(16)                                               (10+13)",null,"(17)                                              (11+14)",null,"(18)                                               (12+15)",null,"(19)                                               (1+10)",null,"(20)                                               (2+11)",null,"(21)                                               (3+12)",null,"(22)                                              (4+13)",null,"(23)                                              (5+14)",null,"(24)                                              (6+15)",null,"(25)                                               (19+22)",null,"(26)                                                (20+23)",null,"(27)                                              (21+24)"]
["VALUATION:",{"$f":"ValuationPos","v":""},null,"cc",null,"cc",null,"cc",null,"cc",null,"cc",null,"cc",null,"cc",null,"cc"," ","cc",null,"cc",null,"cc",null,"cc",null,"cc",null,"cc",null,"cc",null,"cc",null,"cc",null,"cc",null,"cc",null,"cc",null,"cc",null,"cc",null,"cc",null,"cc",null,"cc",null,"cc",null,"cc"]
["W0","WORLD*"]
["W190","World not allocated"]
["E1","EUROPE "]
["E19","Europe not allocated"]
["AL"," Albania"]
["AD"," Andorra"]
["AT"," Austria*"]
["BY"," Belarus"]
["BE"," Belgium*"]
["BA"," Bosnia and Herzegovina"]
["BG"," Bulgaria*"]
["HR"," Croatia"]
["CY"," Cyprus*,1"]
["CZ"," Czech Republic*"]
["DK"," Denmark*"]
["EE"," Estonia*"]
["FO"," Faroe Islands"]
["FI"," Finland*"]
["FR"," France*"]
["DE"," Germany*"]
["GI"," Gibraltar"]
["GR"," Greece*"]
["GG"," Guernsey"]
["VA"," Holy see (Vatican City State)"]
["HU"," Hungary*"]
["IS"," Iceland*"]
["IE"," Ireland*"]
["IM"," Isle of Man"]
["IT"," Italy*"]
["JE"," Jersey"]
["XK","Kosovo"]
["LV"," Latvia*"]
["LI"," Liechtenstein"]
["LT"," Lithuania*"]
["LU"," Luxembourg*"]
["MK"," Macedonia, the Former Yugoslav Republic of "]
["MT"," Malta"]
["MD"," Moldova"]
["ME"," Montenegro"]
["NL"," Netherlands*"]
["NO"," Norway*"]
["PL"," Poland*"]
["PT"," Portugal*"]
["RO"," Romania*"]
["RU"," Russia*"]
["SM"," San Marino"]
["RS"," Serbia"]
["SK"," Slovakia*"]
["SI"," Slovenia*"]
["ES"," Spain*"]
["SE"," Sweden*"]
["CH"," Switzerland* "]
["TR","Turkey*"]
["UA","Ukraine*"]
["GB"," United Kingdom*"]
["R1","Belgum-Luxembourg (until end 2002)"]
["CS","Serbia and Montenegro (until end 2006)"]
["F1","AFRICA* "]
["F19","Africa not allocated"]
["F4","   Northern Africa"]
["DZ","Algeria*"]
["EG","Egypt*"]
["LY","Libyan Arab Jamahiriya*"]
["MA","Morocco*"]
["TN","Tunisia*"]
["F2"," Other African countries"]
["AO"," Angola"]
["BJ"," Benin"]
["BW"," Botswana"]
["IO"," British Indian Ocean Territory"]
["BF"," Burkina Faso"]
["BI"," Burundi"]
["CM"," Cameroon"]
["CV"," Cape Verde"]
["CF"," Central African Republic"]
["TD"," Chad"]
["KM"," Comoros"]
["CG"," Congo"]
["CI"," Côte d'Ivoire"]
["CD"," Congo, the Democratic Republic of the "]
["DJ"," Djibouti"]
["GQ"," Equatorial Guinea"]
["ER"," Eritrea"]
["ET"," Ethiopia"]
["GA"," Gabon"]
["GM"," Gambia"]
["GH"," Ghana"]
["GN"," Guinea"]
["GW"," Guinea-Bissau"]
["KE"," Kenya"]
["LS"," Lesotho"]
["LR"," Liberia"]
["MG"," Madagascar"]
["MW"," Malawi"]
["ML"," Mali"]
["MR"," Mauritania"]
["MU"," Mauritius"]
["MZ"," Mozambique"]
["NA"," Namibia"]
["NE"," Niger"]
["NG"," Nigeria*"]
["RW"," Rwanda"]
["SH"," St Helena"]
["ST"," Sao Tome & Principe"]
["SN"," Senegal"]
["SC"," Seychelles"]
["SL"," Sierra Leone"]
["SO"," Somalia"]
["ZA"," South Africa*"]
["SD"," Sudan"]
["SS"," South Sudan"]
["SZ"," Swaziland"]
["TZ"," Tanzania, United Republic of"]
["TG"," Togo"]
["UG"," Uganda"]
["ZM"," Zambia"]
["ZW","Zimbabwe"]
["A1","AMERICA "]
["A19","America not allocated"]
["A2","   Northern America"]
["CA","      Canada*"]
["GL","      Greenland"]
["US","      United States*"]
["A5","   Central America and Caribbean countries"]
["AI","      Anguilla"]
["AG","      Antigua and Barbuda"]
["AW","      Aruba"]
["BS","      Bahamas"]
["BB","      Barbados"]
["BZ","      Belize"]
["BM","      Bermuda"]
["BQ","      Bonaire, Saint Eustatius and Saba (from 2011 onwards)"]
["KY","      Cayman Islands"]
["CR","      Costa Rica*"]
["CU","      Cuba"]
["CW","      Curaçao (from 2011 onwards)"]
["DM","      Dominica"]
["DO","      Dominican Republic"]
["SV","      El Salvador"]
["GD","      Grenada"]
["GT","      Guatemala"]
["HT","      Haiti"]
["HN","      Honduras"]
["JM","      Jamaica"]
["MX","      Mexico* "]
["MS","      Montserrat"]
["NI","      Nicaragua"]
["PA","      Panama*"]
["KN","      Saint Kitts and Nevis"]
["LC","      Saint Lucia"]
["VC","      Saint Vincent and the Grenadines"]
["SX","      Sint Maarten (from 2011 onwards)"]
["TT","      Trinidad and Tobago"]
["TC","      Turks and Caicos Islands"]
["VG","      Virgin Islands, British"]
["VI","      Virgin Islands, U.S."]
["AN","      Netherlands Antilles (until end 2010)"]
["A7","   South America"]
["AR","      Argentina*"]
["BO","      Bolivia"]
["BR","      Brazil*"]
["CL","      Chile*"]
["CO","      Colombia*"]
["EC","      Ecuador"]
["FK","      Falkland Islands (Malvinas)"]
["GY","      Guyana"]
["PY","      Paraguay"]
["PE","      Peru*"]
["SR","      Suriname"]
["UY","      Uruguay*"]
["VE","      Venezuela*"]
["S1","ASIA "]
["S19","Asia not allocated"]
["S3","   Near and Middle East countries*"]
["S35","      Gulf Arabian countries"]
["BH","         Bahrain"]
["IQ","         Iraq"]
["KW","         Kuwait*"]
["OM","         Oman"]
["QA","         Qatar"]
["SA","         Saudi Arabia*"]
["AE","         United Arab Emirates*"]
["YE","         Yemen"]
["S37","      Other Near and Middle East countries"]
["AM","         Armenia"]
["AZ","         Azerbaijan"]
["GE","         Georgia"]
["IL","         Israel*"]
["JO","         Jordan*"]
["LB","         Lebanon"]
["PS","         Palestinian Territory, Occupied"]
["SY","         Syrian Arab Republic"]
["S6","Other Asian countries"]
["AF","      Afghanistan"]
["BD","      Bangladesh"]
["BT","      Bhutan"]
["BN","      Brunei Darussalam"]
["KH","      Cambodia (Kampuchea)"]
["CN","      China*"]
["HK","      Hong Kong, China*"]
["IN","      India*"]
["ID","      Indonesia*"]
["IR","      Iran, Islamic Republic of"]
["JP","      Japan*"]
["KZ","      Kazakhstan"]
["KP","      Korea, Democratic People's Republic of (North Korea)"]
["KR","      Korea, Republic of (South Korea)*"]
["KG","      Kyrgyzstan"]
["LA","      Lao People's Democratic Republic"]
["MO","      Macao"]
["MY","      Malaysia*"]
["MV","      Maldives"]
["MN","      Mongolia"]
["MM","      Myanmar"]
["NP","      Nepal"]
["PK","      Pakistan"]
["PH","      Philippines*"]
["SG","      Singapore*"]
["LK","      Sri Lanka"]
["TW","      Chinese Taipei"]
["TJ","      Tajikistan"]
["TH","      Thailand*"]
["TL","      Timor-Leste"]
["TM","      Turkmenistan"]
["UZ","      Uzbekistan"]
["VN","      Viet Nam*"]
["O1","AUSTRALIA, OCEANIA & POLAR REGIONS"]
["O19","Oceania & Polar regions not allocated"]
["AS","American Samoa"]
["AQ","Antarctica"]
["AU","Australia*"]
["BV","Bouvet Island"]
["CX","Christmas Islands"]
["CC","Cocos Islands"]
["CK","Cook Islands"]
["FJ","Fiji"]
["PF","French Polynesia"]
["TF","French Southern Territories"]
["GU","Guam"]
["HM","Heard islands and Mc Donald islands"]
["KI","Kiribati"]
["MH","Marshall Islands"]
["FM","Micronesia, Federated States of"]
["NR","Nauru"]
["NC","New Caledonia"]
["NZ","New Zealand*"]
["NU","Niue"]
["NF","Norfolk Island"]
["MP","Northern Mariana Islands"]
["PW","Palau"]
["PG","Papua New Guinea"]
["PN","Pitcairn"]
["WS","Samoa"]
["SB","Solomon Islands"]
["GS","South Georgia  and the South Sandwich Islands"]
["TK","Tokelau"]
["TO","Tonga"]
["TV","Tuvalu"]
["UM","US Minor Outllying islands"]
["VU","Vanuatu"]
["WF","Wallis and Futuna"]
["ECONOMIC AND MONETARY ZONES"]
["P6","OECD37*  (for 2020)"]
["P5","OECD36*  (for 2018-2019)"]
["P4","OECD35*  (for 2016-2017)"]
["P1","OECD34*  (for 2010-2015)"]
["P00","OECD30*  (until 2009 only)"]
["B6","EU27 (without the United Kingdom)* (from 2020)"]
["B5","EU28* (for 2013-2019)"]
["B4","EU27* (for 2007-2012)"]
["B3","EU25* (for 2004-2006 only)"]
["B2","EU15* (until 2003 only)"]
["R4","ASEAN*"]
["R220","G20 countries*"]
["R221","G20 OECD countries*"]
["R222","G20 Non-OECD ctr.*"]
["F98","MENA (Middle East and North Africa countries)*"]
["R25","Total Official Development Assistance (ODA) recipients*"]
["R251","ODA recipients -Europe*"]
["R252","ODA recipients-Africa*"]
["R253","ODA recipients-America*"]
["R254","ODA recipients-Asia*"]
["R255","ODA recipients-Oceania*"]
["[1] Footnote by Turkey:\n The information in this document with reference to “Cyprus” relates to the southern part of the Island. There is no single authority representing both Turkish and Greek Cypriot people on the Island. Turkey recognizes the Turkish Republic of Northern Cyprus (TRNC). Until a lasting and equitable solution is found within the context of United Nations, Turkey shall preserve its position concerning the “Cyprus” issue. \n Footnote by all the European Union Member States of the OECD and the European Union:\n The Republic of Cyprus is recognized by all members of the United Nations with the exception of Turkey. The information in this document relates to the area under the effective control of the Government of the Republic of Cyprus.\nFootnote by Turkey:\n The information in this document with reference to “Cyprus” relates to the southern part of the Island. There is no single authority representing both Turkish and Greek Cypriot people on the Island. Turkey recognizes the Turkish Republic of Northern Cyprus (TRNC). Until a lasting and equitable solution is found within the context of United Nations, Turkey shall preserve its position concerning the “Cyprus” issue. \n Footnote by all the European Union Member States of the OECD and the European Union:\n The Republic of Cyprus is recognized by all members of the United Nations with the exception of Turkey. The information in this document relates to the area under the effective control of the Government of the Republic of Cyprus.\n"]
[]
["* Priority items to avoid when flagging data for secondary confidentiality. If the secondary confidentiality checking exercise is too burdensome for reporting the full GEO breakdown for FDI instruments and for series of SPEs/excluding resident SPE, the priority items should be reported while the other items can be flagged as non-publishable, unless they play a significant role in total FDI. "]
["Cells highlighted in grey are secondary priority"]

{"sheet":"2-POS-IND-IN","index":7,"n_rows":96,"n_cols":56,"rows_kept":96,"cut":false,"hidden":false,"merged":[[1,2,1,19],[1,20,1,37],[1,38,1,55],[2,2,2,7],[2,8,2,13],[2,14,2,19],[3,2,3,3],[3,4,3,5],[3,6,3,7],[3,8,3,9],[3,10,3,11],[3,14,3,15],[3,16,3,17],[3,18,3,19],[3,22,3,23],[3,24,3,25],[3,26,3,27],[3,28,3,29],[3,32,3,33],[3,34,3,35],[3,50,3,51],[3,52,3,53],[3,54,3,55],[3,36,3,37],[2,44,2,49],[2,50,2,55],[2,20,2,25],[2,26,2,31],[2,32,2,37],[2,38,2,43],[3,20,3,21],[5,12,5,13],[5,14,5,15],[5,16,5,17],[5,18,5,19],[5,30,5,31],[3,38,3,39],[3,40,3,41],[3,42,3,43],[3,44,3,45],[3,46,3,47],[5,46,5,47],[5,48,5,49],[5,24,5,25],[5,32,5,33],[5,34,5,35],[5,36,5,37],[5,38,5,39],[5,52,5,53],[5,54,5,55],[5,50,5,51],[6,2,7,2],[6,3,7,3],[6,4,7,4],[6,5,7,5],[6,6,7,6],[6,7,7,7],[5,40,5,41],[5,42,5,43],[5,44,5,45],[6,14,7,14],[6,15,7,15],[6,16,7,16],[6,17,7,17],[6,18,7,18],[6,19,7,19],[6,8,7,8],[6,9,7,9],[6,10,7,10],[6,11,7,11],[6,12,7,12],[6,13,7,13],[6,26,7,26],[6,27,7,27],[6,28,7,28],[6,29,7,29],[6,30,7,30],[6,31,7,31],[6,20,7,20],[6,21,7,21],[6,22,7,22],[6,23,7,23],[6,24,7,24],[6,25,7,25],[6,38,7,38],[6,39,7,39],[6,40,7,40],[6,41,7,41],[6,42,7,42],[6,43,7,43],[6,32,7,32],[6,33,7,33],[6,34,7,34],[6,35,7,35],[6,36,7,36],[6,37,7,37],[6,50,7,50],[6,51,7,51],[6,52,7,52],[6,53,7,53],[6,54,7,54],[6,55,7,55],[6,44,7,44],[6,45,7,45],[6,46,7,46],[6,47,7,47],[6,48,7,48],[6,49,7,49]]}
["                        ","QUESTIONNAIRE 2-POS-IND-IN  INWARD Direct Investment Positions by industry classification (ISIC 4) (Directional Principle)",null,null,null,null,null,null,null,null,null,null,null,null,null,null,null,null,null,null,null,null,null,null,null,null,null,null,null,null,null,null,null,null,null,null,null,null,null,null,null,null,null,null,null,null,null,null,null,null,null,null,null,null,"OECD"]
["COUNTRY:",{"$f":"Country","v":""},"EQUITY & REINVESTED EARNINGS (F5)",null,null,null,null,null,null,null,null,null,null,null,null,null,null,null,null,null,"DEBT INSTRUMENTS (FL)",null,null,null,null,null,null,null,null,null,null,null,null,null,null,null,null,null,"TOTAL FDI INWARD POSITION (F)"]
["YEAR:  ",{"$f":"Year","v":2020},"Excl. Res SPEs (ROU)\n",null,null,null,null,null,"Res SPEs (RSP)\n",null,null,null,null,null,"All Entities (ALL)\n",null,null,null,null,null,"Excl. Res SPEs (ROU)\n",null,null,null,null,null,"Res SPEs (RSP)\n",null,null,null,null,null,"All Entities (ALL)\n",null,null,null,null,null,"Excl. Res SPEs (ROU)\n",null,null,null,null,null,"Res SPEs (RSP)\n",null,null,null,null,null,"All Entities (ALL)\n"]
["CURRENCY:  ",{"$f":"Currency","v":0},"Liabilities",null,"Assets",null,"Net Inward",null,"Liabilities",null,"Assets",null,"Net Inward",null,"Liabilities",null,"Assets",null,"Net Inward",null,"Liabilities",null,"Assets",null,"Net Inward",null,"Liabilities",null,"Assets",null,"Net Inward",null,"Liabilities",null,"Assets",null,"Net Inward",null,"Liabilities",null,"Assets",null,"Net Inward",null,"Liabilities",null,"Assets",null,"Net Inward",null,"Liabilities",null,"Assets",null,"Net Inward"]
["UNITS:           ","MILLIONS","L",null,"A",null,"NI",null,"L",null,"A",null,"NI",null,"L",null,"A",null,"NI",null,"L",null,"A",null,"NI",null,"L",null,"A",null,"NI",null,"L",null,"A",null,"NI",null,"L",null,"A",null,"NI",null,"L",null,"A",null,"NI",null,"L",null,"A",null,"NI"]
["STATISTICAL UNIT:",{"$f":"StatUnit","v":""},"(1)",null,"(2)",null,"(3)                                                   (1-2)",null,"(4)",null,"(5)",null,"(6)                                                    (4-5)",null,"(7)                                                 (1+4)",null,"(8)                                      (2+5)",null,"(9)                                                 (3+6)",null,"(10)",null,"(11)",null,"(12)                                              (10-11)",null,"(13)",null,"(14)",null,"(15)                                              (13-14)",null,"(16)                                               (10+13)",null,"(17)                                              (11+14)",null,"(18)                                               (12+15)",null,"(19)                                               (1+10)",null,"(20)                                               (2+11)",null,"(21)                                               (3+12)",null,"(22)                                              (4+13)",null,"(23)                                              (5+14)",null,"(24)                                              (6+15)",null,"(25)                                               (19+22)",null,"(26)                                                (20+23)",null,"(27)                                              (21+24)"]
["VALUATION:",{"$f":"ValuationPos","v":""},null,"cc",null,"cc",null,"cc",null,"cc",null,"cc",null,"cc",null,"cc",null,"cc",null,"cc",null,"cc",null,"cc",null,"cc",null,"cc",null,"cc",null,"cc",null,"cc",null,"cc",null,"cc",null,"cc",null,"cc",null,"cc",null,"cc",null,"cc",null,"cc",null,"cc",null,"cc",null,"cc"]
["ACTIVITY ALLOCATION:",{"$f":"EcoActInward","v":"Direct investment enterprise"}]
["A","AGRICULTURE, FORESTRY AND FISHING (Section A) "]
["B","MINING AND QUARRYING (Section B)"]
["B06_09","Of which:      Extraction of crude petroleum and gas; mining support services"]
["A_B","TOTAL PRIMARY SECTOR (Sections A and B)"]
["C","MANUFACTURING (Section C) "]
["C10T12","Food products, beverage and tobacco products"]
["C13_14","Textiles and wearing apparel"]
["C16T18","Manufacture of wood, paper, and their products; printing and reproduction or recorded media"]
["C13T18X15","[TOTAL textiles + wood activities ](C13_14+C16T18)"]
["C19","Coke and refined petroleum products"]
["C20","Manufacture of chemicals and chemical products"]
["C21","Pharmaceuticals products and preparation"]
["C22","Rubber and plastic products"]
["C19T22","[TOTAL petroleum, chemical, pharmaceuticals, rubber and plastic products] (C19+C20+C21+C22) "]
["C24_25","Basic metal and fabricated metal products"]
["C26","Computer, electronic and optical products"]
["C262"," Of which: Computers and peripheral equipment"]
["C263_264","      Communication equipment and consumer electronics"]
["C265_266","       Instrument and appliances for measuring, testing and navigation; watches and clock; irradiation, electromedical and electrotherapeutic equipment"]
["C28","Machinery and equipment n. e. c"]
["C24T28X27","[TOTAL metal, computer and machinery] (C24_C25+C26+C28)"]
["C29","Motor vehicles, trailers and semi-trailers"]
["C30","Other transport equipments"]
["C303","Of which:   Manufacture of aircraft and spacecraft"]
["C29_30","[TOTAL vehicles and other transport equipment] (C29+C30)"]
["C_OTH","Other manufacturing"]
["D35","ELECTRICITY, GAS, STEAM AND AIR CONDITIONING SUPPLY (Section D)"]
["E","WATER SUPPLY, SEWERAGE, WASTE MANAGEMENT AND REMEDIATION ACTIVITIES (Section E)"]
["E36","Water collection, treatment and supply"]
["E37T39","Sewerage, waste management and remediation activities"]
["F","CONSTRUCTION (Section F)"]
["G","WHOLESALE AND RETAILTRADE; REPAIR OF MOTOR VEHICLES AND MOTOR CYCLES (Section G)"]
["G45","Wholesale and retail trade and repair of motor vehicles and motorcycles"]
["G46","Wholesale trade, except of motor vehicles and motor cycles"]
["G47","Retail trade, except of motor vehicles and motor cycles"]
["H","TRANSPORTATION AND STORAGE (Section H)"]
["H49","Land transport and transport via pipelines"]
["H50","Water transport"]
["H51","Air transport"]
["H52","Warehousing and support activities for transportation"]
["HX53","[TOTAL transport and storage] (H49+H50+H51+H52)"]
["H53","Post and courier activities"]
["I","ACCOMODATION AND FOOD SERVICE ACTIVITIES (Section I)"]
["J","INFORMATION AND COMMUNICATION (Section J) "]
["J59_60","Motion picture, video and TV programme production, sound recording and music publishing activities; programming and broadcasting activities"]
["J61","Telecommunications"]
["J58_62_63","Other information and communication activities"]
["K","FINANCIAL AND INSURANCE ACTIVITIES (Section K) "]
["K64","Financial services activities, except insurance and pension funding"]
["K641","Of which:   Monetary intermediation"]
["K642","                        Activities of holding companies"]
["K643","                       Trusts, funds and similar financial entities"]
["K65","Insurance, reinsurance and pension funding, except compulsory social security"]
["K66","Activities auxiliary to financial services and insurance activities"]
["L","REAL ESTATE ACTIVITIES (Section L) "]
["M","PROFESSIONAL, SCIENTIFIC AND TECHNICAL ACTIVITIES (Section M)"]
["M69","Legal and accounting activities"]
["M691","     Legal activities"]
["M692","     Accounting, bookkeeping and auditing activities, tax consultancy"]
["M70","Activities of head offices; management and consultancy activities "]
["M701","      Activities of head offices"]
["M702","      Management consultancy activities"]
["M71","Architecture and engineering activities, technical testing and analysis"]
["M72","Scientific research and development"]
["M73","Advertising and market research"]
["M731","     Advertising"]
["M732","     Market research and public opinion polling"]
["M74_75","Other professional, scientific and technical activities"]
["N","ADMINISTRATIVE AND SUPPORT SERVICE ACTIVITIES (Section N)"]
["N77","Rental and leasing activities"]
["N78T82","Other administrative and support services activities"]
["N79"," Of which: Travel agency, tour operator reservation service and related activities"]
["P85","EDUCATION (Section P)"]
["Q","HUMAN HEALTH AND SOCIAL WORK ACTIVITIES (Section Q)"]
["R","ARTS, ENTERTAINMENT AND RECREATION (Section R)"]
["R90","Creative, arts and entertainment activities"]
["R91","Libraries, archives, museums and other cultural activities"]
["R92_93","Sports activities and amusement and recreation activities; gambling and betting activities"]
["O_T_U","Public administration; activities of households and of extraterritorial organisations  (Section O, T, U)"]
["S","OTHER SERVICE ACTIVITIES (Section S)"]
["S94","Activities of membership organisations"]
["S95_96","Repair of computers and personal and household goods, other services"]
["GTU","TOTAL SERVICES (Sections G to U)"]
["_X","Unallocated"]
["PRV_RE","Priv. purchase & sales of real estate"]
["FDI_T","TOTAL"]
["Notes:"]
["Columns shaded in grey are second priority"]

{"sheet":"2-POS-IND-OUT","index":8,"n_rows":96,"n_cols":56,"rows_kept":96,"cut":false,"hidden":false,"merged":[[3,52,3,53],[3,54,3,55],[3,38,3,39],[3,40,3,41],[3,42,3,43],[3,44,3,45],[3,46,3,47],[3,48,3,49],[3,22,3,23],[3,24,3,25],[3,26,3,27],[3,28,3,29],[3,30,3,31],[3,32,3,33],[3,34,3,35],[3,36,3,37],[3,50,3,51],[3,4,3,5],[3,6,3,7],[3,8,3,9],[3,10,3,11],[3,12,3,13],[3,14,3,15],[3,16,3,17],[3,18,3,19],[3,20,3,21],[1,38,1,55],[2,2,2,7],[2,8,2,13],[2,14,2,19],[2,20,2,25],[2,26,2,31],[5,12,5,13],[5,14,5,15],[5,16,5,17],[2,44,2,49],[2,50,2,55],[2,32,2,37],[2,38,2,43],[5,54,5,55],[5,52,5,53],[5,42,5,43],[5,44,5,45],[5,46,5,47],[5,48,5,49],[5,50,5,51],[5,30,5,31],[5,38,5,39],[5,40,5,41],[3,2,3,3],[6,2,7,2],[6,3,7,3],[6,4,7,4],[6,5,7,5],[6,6,7,6],[6,7,7,7],[5,18,5,19],[5,24,5,25],[1,2,1,19],[1,20,1,37],[5,32,5,33],[5,34,5,35],[5,36,5,37],[6,14,7,14],[6,15,7,15],[6,16,7,16],[6,17,7,17],[6,18,7,18],[6,19,7,19],[6,8,7,8],[6,9,7,9],[6,10,7,10],[6,11,7,11],[6,12,7,12],[6,13,7,13],[6,26,7,26],[6,27,7,27],[6,28,7,28],[6,29,7,29],[6,30,7,30],[6,31,7,31],[6,20,7,20],[6,21,7,21],[6,22,7,22],[6,23,7,23],[6,24,7,24],[6,25,7,25],[6,38,7,38],[6,39,7,39],[6,40,7,40],[6,41,7,41],[6,42,7,42],[6,43,7,43],[6,32,7,32],[6,33,7,33],[6,34,7,34],[6,35,7,35],[6,36,7,36],[6,37,7,37],[6,50,7,50],[6,51,7,51],[6,52,7,52],[6,53,7,53],[6,54,7,54],[6,55,7,55],[6,44,7,44],[6,45,7,45],[6,46,7,46],[6,47,7,47],[6,48,7,48],[6,49,7,49]]}
["                        ","QUESTIONNAIRE 2-POS-IND-OUT  OUTWARD Direct Investment Positions by industry classification (ISIC 4) (Directional Principle)",null,null,null,null,null,null,null,null,null,null,null,null,null,null,null,null,null,null,null,null,null,null,null,null,null,null,null,null,null,null,null,null,null,null,null,null,null,null,null,null,null,null,null,null,null,null,null,null,null,null,null,null,"OECD"]
["COUNTRY:",{"$f":"Country","v":""},"EQUITY & REINVESTED EARNINGS (F5)",null,null,null,null,null,null,null,null,null,null,null,null,null,null,null,null,null,"DEBT INSTRUMENTS (FL)",null,null,null,null,null,null,null,null,null,null,null,null,null,null,null,null,null,"TOTAL FDI OUTWARD POSITION (F)"]
["YEAR:  ",{"$f":"Year","v":2020},"Excl. Res SPEs (ROU)\n",null,null,null,null,null,"Res SPEs (RSP)\n",null,null,null,null,null,"All Entities (ALL)\n",null,null,null,null,null,"Excl. Res SPEs (ROU)\n",null,null,null,null,null,"Res SPEs (RSP)\n",null,null,null,null,null,"All Entities (ALL)\n",null,null,null,null,null,"Excl. Res SPEs (ROU)\n",null,null,null,null,null,"Res SPEs (RSP)\n",null,null,null,null,null,"All Entities (ALL)\n"]
["CURRENCY:  ",{"$f":"Currency","v":0},"Assets",null,"Liabilities",null,"Net outward",null,"Assets",null,"Liabilities",null,"Net outward",null,"Assets",null,"Liabilities",null,"Net outward",null,"Assets",null,"Liabilities",null,"Net outward",null,"Assets",null,"Liabilities",null,"Net outward",null,"Assets",null,"Liabilities",null,"Net outward",null,"Assets",null,"Liabilities",null,"Net outward",null,"Assets",null,"Liabilities",null,"Net outward",null,"Assets",null,"Liabilities",null,"Net outward"]
["UNITS:           ","MILLIONS","A",null,"L",null,"NO",null,"A",null,"L",null,"NO",null,"A",null,"L",null,"NO",null,"A",null,"L",null,"NO",null,"A",null,"L",null,"NO",null,"A",null,"L",null,"NO",null,"A",null,"L",null,"NO",null,"A",null,"L",null,"NO",null,"A",null,"L",null,"NO"]
["STATISTICAL UNIT:",{"$f":"StatUnit","v":""},"(1)",null,"(2)",null,"(3)                                                   (1-2)",null,"(4)",null,"(5)",null,"(6)                                                    (4-5)",null,"(7)                                                 (1+4)",null,"(8)                                      (2+5)",null,"(9)                                                 (3+6)",null,"(10)",null,"(11)",null,"(12)                                              (10-11)",null,"(13)",null,"(14)",null,"(15)                                              (13-14)",null,"(16)                                               (10+13)",null,"(17)                                              (11+14)",null,"(18)                                               (12+15)",null,"(19)                                               (1+10)",null,"(20)                                               (2+11)",null,"(21)                                               (3+12)",null,"(22)                                              (4+13)",null,"(23)                                              (5+14)",null,"(24)                                              (6+15)",null,"(25)                                               (19+22)",null,"(26)                                                (20+23)",null,"(27)                                              (21+24)"]
["VALUATION:",{"$f":"ValuationPos","v":""},null,"cc",null,"cc",null,"cc",null,"cc",null,"cc",null,"cc",null,"cc",null,"cc",null,"cc",null,"cc",null,"cc",null,"cc",null,"cc",null,"cc",null,"cc",null,"cc",null,"cc",null,"cc",null,"cc",null,"cc",null,"cc",null,"cc",null,"cc",null,"cc",null,"cc",null,"cc",null,"cc"]
["ACTIVITY ALLOCATION:",{"$f":"EcoActOutward","v":"Direct investment enterprise"}]
["A","AGRICULTURE, FORESTRY AND FISHING (Section A) "]
["B","MINING AND QUARRYING (Section B)"]
["B06_09","Of which:      Extraction of crude petroleum and gas; mining support services"]
["A_B","TOTAL PRIMARY SECTOR (Sections A and B)"]
["C","MANUFACTURING (Section C) "]
["C10T12","Food products, beverage and tobacco products"]
["C13_14","Textiles and wearing apparel"]
["C16T18","Manufacture of wood, paper, and their products; printing and reproduction or recorded media"]
["C13T18X15","[TOTAL textiles + wood activities ](C13_14+C16T18)"]
["C19","Coke and refined petroleum products"]
["C20","Manufacture of chemicals and chemical products"]
["C21","Pharmaceuticals products and preparation"]
["C22","Rubber and plastic products"]
["C19T22","[TOTAL petroleum, chemical, pharmaceuticals, rubber and plastic products] (C19+C20+C21+C22) "]
["C24_25","Basic metal and fabricated metal products"]
["C26","Computer, electronic and optical products"]
["C262"," Of which: Computers and peripheral equipment"]
["C263_264","      Communication equipment and consumer electronics"]
["C265_266","       Instrument and appliances for measuring, testing and navigation; watches and clock; irradiation, electromedical and electrotherapeutic equipment"]
["C28","Machinery and equipment n. e. c"]
["C24T28X27","[TOTAL metal, computer and machinery] (C24_C25+C26+C28)"]
["C29","Motor vehicles, trailers and semi-trailers"]
["C30","Other transport equipments"]
["C303","Of which:   Manufacture of aircraft and spacecraft"]
["C29_30","[TOTAL vehicles and other transport equipment] (C29+C30)"]
["C_OTH","Other manufacturing"]
["D35","ELECTRICITY, GAS, STEAM AND AIR CONDITIONING SUPPLY (Section D)"]
["E","WATER SUPPLY, SEWERAGE, WASTE MANAGEMENT AND REMEDIATION ACTIVITIES (Section E)"]
["E36","Water collection, treatment and supply"]
["E37T39","Sewerage, waste management and remediation activities"]
["F","CONSTRUCTION (Section F)"]
["G","WHOLESALE AND RETAILTRADE; REPAIR OF MOTOR VEHICLES AND MOTOR CYCLES (Section G)"]
["G45","Wholesale and retail trade and repair of motor vehicles and motorcycles"]
["G46","Wholesale trade, except of motor vehicles and motor cycles"]
["G47","Retail trade, except of motor vehicles and motor cycles"]
["H","TRANSPORTATION AND STORAGE (Section H)"]
["H49","Land transport and transport via pipelines"]
["H50","Water transport"]
["H51","Air transport"]
["H52","Warehousing and support activities for transportation"]
["HX53","[TOTAL transport and storage] (H49+H50+H51+H52)"]
["H53","Post and courier activities"]
["I","ACCOMODATION AND FOOD SERVICE ACTIVITIES (Section I)"]
["J","INFORMATION AND COMMUNICATION (Section J) "]
["J59_60","Motion picture, video and TV programme production, sound recording and music publishing activities; programming and broadcasting activities"]
["J61","Telecommunications"]
["J58_62_63","Other information and communication activities"]
["K","FINANCIAL AND INSURANCE ACTIVITIES (Section K) "]
["K64","Financial services activities, except insurance and pension funding"]
["K641","Of which:   Monetary intermediation"]
["K642","                        Activities of holding companies"]
["K643","                       Trusts, funds and similar financial entities"]
["K65","Insurance, reinsurance and pension funding, except compulsory social security"]
["K66","Activities auxiliary to financial services and insurance activities"]
["L","REAL ESTATE ACTIVITIES (Section L) "]
["M","PROFESSIONAL, SCIENTIFIC AND TECHNICAL ACTIVITIES (Section M)"]
["M69","Legal and accounting activities"]
["M691","     Legal activities"]
["M692","     Accounting, bookkeeping and auditing activities, tax consultancy"]
["M70","Activities of head offices; management and consultancy activities "]
["M701","      Activities of head offices"]
["M702","      Management consultancy activities"]
["M71","Architecture and engineering activities, technical testing and analysis"]
["M72","Scientific research and development"]
["M73","Advertising and market research"]
["M731","     Advertising"]
["M732","     Market research and public opinion polling"]
["M74_75","Other professional, scientific and technical activities"]
["N","ADMINISTRATIVE AND SUPPORT SERVICE ACTIVITIES (Section N)"]
["N77","Rental and leasing activities"]
["N78T82","Other administrative and support services activities"]
["N79"," Of which: Travel agency, tour operator reservation service and related activities"]
["P85","EDUCATION (Section P)"]
["Q","HUMAN HEALTH AND SOCIAL WORK ACTIVITIES (Section Q)"]
["R","ARTS, ENTERTAINMENT AND RECREATION (Section R)"]
["R90","Creative, arts and entertainment activities"]
["R91","Libraries, archives, museums and other cultural activities"]
["R92_93","Sports activities and amusement and recreation activities; gambling and betting activities"]
["O_T_U","Public administration; activities of households and of extraterritorial organisations  (Section O, T, U)"]
["S","OTHER SERVICE ACTIVITIES (Section S)"]
["S94","Activities of membership organisations"]
["S95_96","Repair of computers and personal and household goods, other services"]
["GTU","TOTAL SERVICES (Sections G to U)"]
["_X","Unallocated"]
["PRV_RE","Priv. purchase & sales of real estate"]
["FDI_T","TOTAL"]
["Notes:"]
["Columns shaded in grey are second priority"]

{"sheet":"2-FLOW-GEO-IN","index":9,"n_rows":294,"n_cols":62,"rows_kept":294,"cut":false,"hidden":false,"merged":[[0,1,0,24],[3,60,3,61],[3,46,3,47],[3,48,3,49],[3,50,3,51],[3,52,3,53],[3,56,3,57],[3,58,3,59],[1,44,1,61],[2,2,2,7],[2,8,2,13],[2,14,2,19],[2,26,2,31],[2,32,2,37],[2,38,2,43],[2,44,2,49],[2,50,2,55],[2,56,2,61],[1,26,1,43],[1,20,1,25],[5,12,5,13],[5,14,5,15],[1,2,1,19],[3,2,3,3],[3,4,3,5],[5,16,5,17],[5,18,5,19],[3,6,3,7],[3,8,3,9],[5,50,5,51],[5,52,5,53],[3,10,3,11],[3,14,3,15],[3,16,3,17],[3,18,3,19],[3,20,3,21],[3,22,3,23],[5,48,5,49],[5,44,5,45],[5,38,5,39],[5,40,5,41],[5,46,5,47],[3,44,3,45],[5,42,5,43],[3,24,3,25],[3,26,3,27],[3,28,3,29],[5,30,5,31],[5,36,5,37],[3,30,3,31],[3,32,3,33],[3,34,3,35],[3,38,3,39],[3,40,3,41],[3,42,3,43]]}
["                        ","QUESTIONNAIRE 2-FLOW-GEO-IN    Direct Investment INFLOWS by geographical allocation (Directional Principle).                                                                                                                                                                                                                                                                                                                                                                                                                                                                                                                                                                       Total FDI inflows series should be reported with the full geographical breakdown. Items marked with * are to be avoided in priority when flagging data for secondary confidentiality. Also, when secondary confidentiality process becomes too burdensome to report the full geographical breakdown for series of FDI instruments and of series excluding/of resident SPEs, those priority items are to be reported in priority while other items can be flagged as non publishable.",null,null,null,null,null,null,null,null,null,null,null,null,null,null,null,null,null,null,null,null,null,null,null,null,null,null,null,null,null,null,null,null,null,null,null,null,null,null,null,null,null,null,null,null,null,null,null,null,null,null,null,null,null,null,null,null,null,null,"OECD"]
["COUNTRY:",{"$f":"Country","v":""},"EQUITY (F5A)",null,null,null,null,null,null,null,null,null,null,null,null,null,null,null,null,null,"REINVESTMENT OF EARNINGS (F5B)",null,null,null,null,null,"DEBT INSTRUMENTS (FL)",null,null,null,null,null,null,null,null,null,null,null,null,null,null,null,null,null,"TOTAL FDI INFLOWS (F)"]
["YEAR:  ",{"$f":"Year","v":2020},"Excl. Res SPEs (ROU)\n",null,null,null,null,null,"Res SPEs (RSP)\n",null,null,null,null,null,"All Entities (ALL)\n",null,null,null,null,null,"Excl. Res. SPEs (ROU)",null,"Res. SPEs (RSP)",null,"All Entities (ALL)",null,"Excl. Res SPEs (ROU)\n",null,null,null,null,null,"Res SPEs (RSP)\n",null,null,null,null,null,"All Entities (ALL)\n",null,null,null,null,null,"Excl. Res SPEs (ROU)\n",null,null,null,null,null,"Res SPEs (RSP)\n",null,null,null,null,null,"All Entities (ALL)\n"]
["CURRENCY:  ",{"$f":"Currency","v":0},"Liabilities",null,"Assets",null,"Net Inward",null,"Liabilities",null,"Assets",null,"Net Inward",null,"Liabilities",null,"Assets",null,"Net Inward",null,"Net Inward",null,"Net Inward",null,"Net Inward",null,"Liabilities",null,"Assets",null,"Net Inward",null,"Liabilities",null,"Assets",null,"Net Inward",null,"Liabilities",null,"Assets",null,"Net Inward",null,"Liabilities",null,"Assets",null,"Net Inward",null,"Liabilities",null,"Assets",null,"Net Inward",null,"Liabilities",null,"Assets",null,"Net Inward"]
["UNITS:           ","MILLIONS","L",null,"A",null,"NI",null,"L",null,"A",null,"NI",null,"L",null,"A",null,"NI",null,"NI",null,"NI",null,"NI",null,"L",null,"A",null,"NI",null,"L",null,"A",null,"NI",null,"L",null,"A",null,"NI",null,"L",null,"A",null,"NI",null,"L",null,"A",null,"NI",null,"L",null,"A",null,"NI"]
["STATISTICAL UNIT:",{"$f":"StatUnit","v":""},"(1)",null,"(2)",null,"(3)                                        (1-2)",null,"(4)",null,"(5)",null,"(6)                                                 (4-5)",null,"(7)                                                   (1+4)",null,"(8)                                                (2+5)",null,"(9)                                                 (7-8)",null,"(10)",null,"(11)",null,"(12)                               (10+11)",null,"(13)",null,"(14)",null,"(15)                                               (13-14)",null,"(16)",null,"(17)",null,"(18)                                               (16-17)",null,"(19)                                               (13+16)",null,"(20)                                              (14+17)",null,"(21)                                               (19-20)",null,"(22)                                              (1+10+13)",null,"(23)                                              (2+14)",null,"(24)                                   (3+10+15)",null,"(25)                                              (4+11+16)",null,"(26)                                              (5+17)",null,"(27)                 (6+11+18)",null,"(28)                                     (22+25)",null,"(29)                                     (23+26)",null,"(30)                                     (24+27)"]
["VALUATION:",{"$f":"ValuationFlows","v":""},null,"cc",null,"cc",null,"cc",null,"cc",null,"cc",null,"cc",null,"cc",null,"cc",null,"cc",null,"cc",null,"cc",null,"cc",null,"cc",null,"cc",null,"cc",null,"cc",null,"cc",null,"cc",null,"cc",null,"cc",null,"cc",null,"cc",null,"cc",null,"cc",null,"cc",null,"cc",null,"cc",null,"cc",null,"cc",null,"cc"]
["W0","WORLD*"]
["W190","World not allocated"]
["E1","EUROPE "]
["E19","Europe not allocated"]
["AL"," Albania"]
["AD"," Andorra"]
["AT"," Austria*"]
["BY"," Belarus"]
["BE"," Belgium*"]
["BA"," Bosnia and Herzegovina"]
["BG"," Bulgaria*"]
["HR"," Croatia"]
["CY"," Cyprus*,1"]
["CZ"," Czech Republic*"]
["DK"," Denmark*"]
["EE"," Estonia*"]
["FO"," Faroe Islands"]
["FI"," Finland*"]
["FR"," France*"]
["DE"," Germany*"]
["GI"," Gibraltar"]
["GR"," Greece*"]
["GG"," Guernsey"]
["VA"," Holy see (Vatican City State)"]
["HU"," Hungary*"]
["IS"," Iceland*"]
["IE"," Ireland*"]
["IM"," Isle of Man"]
["IT"," Italy*"]
["JE"," Jersey"]
["XK","Kosovo"]
["LV"," Latvia*"]
["LI"," Liechtenstein"]
["LT"," Lithuania*"]
["LU"," Luxembourg*"]
["MK"," Macedonia, the Former Yugoslav Republic of "]
["MT"," Malta"]
["MD"," Moldova"]
["ME"," Montenegro"]
["NL"," Netherlands*"]
["NO"," Norway*"]
["PL"," Poland*"]
["PT"," Portugal*"]
["RO"," Romania*"]
["RU"," Russia*"]
["SM"," San Marino"]
["RS"," Serbia"]
["SK"," Slovakia*"]
["SI"," Slovenia*"]
["ES"," Spain*"]
["SE"," Sweden*"]
["CH"," Switzerland* "]
["TR","Turkey*"]
["UA","Ukraine*"]
["GB"," United Kingdom*"]
["R1","Belgum-Luxembourg (until end 2002)"]
["CS","Serbia and Montenegro (until end 2006)"]
["F1","AFRICA* "]
["F19","Africa not allocated"]
["F4","   Northern Africa"]
["DZ","Algeria*"]
["EG","Egypt*"]
["LY","Libyan Arab Jamahiriya*"]
["MA","Morocco*"]
["TN","Tunisia*"]
["F2"," Other African countries"]
["AO"," Angola"]
["BJ"," Benin"]
["BW"," Botswana"]
["IO"," British Indian Ocean Territory"]
["BF"," Burkina Faso"]
["BI"," Burundi"]
["CM"," Cameroon"]
["CV"," Cape Verde"]
["CF"," Central African Republic"]
["TD"," Chad"]
["KM"," Comoros"]
["CG"," Congo"]
["CI"," Côte d'Ivoire"]
["CD"," Congo, the Democratic Republic of the "]
["DJ"," Djibouti"]
["GQ"," Equatorial Guinea"]
["ER"," Eritrea"]
["ET"," Ethiopia"]
["GA"," Gabon"]
["GM"," Gambia"]
["GH"," Ghana"]
["GN"," Guinea"]
["GW"," Guinea-Bissau"]
["KE"," Kenya"]
["LS"," Lesotho"]
["LR"," Liberia"]
["MG"," Madagascar"]
["MW"," Malawi"]
["ML"," Mali"]
["MR"," Mauritania"]
["MU"," Mauritius"]
["MZ"," Mozambique"]
["NA"," Namibia"]
["NE"," Niger"]
["NG"," Nigeria*"]
["RW"," Rwanda"]
["SH"," St Helena"]
["ST"," Sao Tome & Principe"]
["SN"," Senegal"]
["SC"," Seychelles"]
["SL"," Sierra Leone"]
["SO"," Somalia"]
["ZA"," South Africa*"]
["SD"," Sudan"]
["SS"," South Sudan"]
["SZ"," Swaziland"]
["TZ"," Tanzania, United Republic of"]
["TG"," Togo"]
["UG"," Uganda"]
["ZM"," Zambia"]
["ZW","Zimbabwe"]
["A1","AMERICA "]
["A19","America not allocated"]
["A2","   Northern America"]
["CA","      Canada*"]
["GL","      Greenland"]
["US","      United States*"]
["A5","   Central America and Caribbean countries"]
["AI","      Anguilla"]
["AG","      Antigua and Barbuda"]
["AW","      Aruba"]
["BS","      Bahamas"]
["BB","      Barbados"]
["BZ","      Belize"]
["BM","      Bermuda"]
["BQ","      Bonaire, Saint Eustatius and Saba (from 2011 onwards)"]
["KY","      Cayman Islands"]
["CR","      Costa Rica*"]
["CU","      Cuba"]
["CW","      Curaçao (from 2011 onwards)"]
["DM","      Dominica"]
["DO","      Dominican Republic"]
["SV","      El Salvador"]
["GD","      Grenada"]
["GT","      Guatemala"]
["HT","      Haiti"]
["HN","      Honduras"]
["JM","      Jamaica"]
["MX","      Mexico* "]
["MS","      Montserrat"]
["NI","      Nicaragua"]
["PA","      Panama*"]
["KN","      Saint Kitts and Nevis"]
["LC","      Saint Lucia"]
["VC","      Saint Vincent and the Grenadines"]
["SX","      Sint Maarten (from 2011 onwards)"]
["TT","      Trinidad and Tobago"]
["TC","      Turks and Caicos Islands"]
["VG","      Virgin Islands, British"]
["VI","      Virgin Islands, U.S."]
["AN","      Netherlands Antilles (until end 2010)"]
["A7","   South America"]
["AR","      Argentina*"]
["BO","      Bolivia"]
["BR","      Brazil*"]
["CL","      Chile*"]
["CO","      Colombia*"]
["EC","      Ecuador"]
["FK","      Falkland Islands (Malvinas)"]
["GY","      Guyana"]
["PY","      Paraguay"]
["PE","      Peru*"]
["SR","      Suriname"]
["UY","      Uruguay*"]
["VE","      Venezuela*"]
["S1","ASIA "]
["S19","Asia not allocated"]
["S3","   Near and Middle East countries*"]
["S35","      Gulf Arabian countries"]
["BH","         Bahrain"]
["IQ","         Iraq"]
["KW","         Kuwait*"]
["OM","         Oman"]
["QA","         Qatar"]
["SA","         Saudi Arabia*"]
["AE","         United Arab Emirates*"]
["YE","         Yemen"]
["S37","      Other Near and Middle East countries"]
["AM","         Armenia"]
["AZ","         Azerbaijan"]
["GE","         Georgia"]
["IL","         Israel*"]
["JO","         Jordan*"]
["LB","         Lebanon"]
["PS","         Palestinian Territory, Occupied"]
["SY","         Syrian Arab Republic"]
["S6","Other Asian countries"]
["AF","      Afghanistan"]
["BD","      Bangladesh"]
["BT","      Bhutan"]
["BN","      Brunei Darussalam"]
["KH","      Cambodia (Kampuchea)"]
["CN","      China*"]
["HK","      Hong Kong, China*"]
["IN","      India*"]
["ID","      Indonesia*"]
["IR","      Iran, Islamic Republic of"]
["JP","      Japan*"]
["KZ","      Kazakhstan"]
["KP","      Korea, Democratic People's Republic of (North Korea)"]
["KR","      Korea, Republic of (South Korea)*"]
["KG","      Kyrgyzstan"]
["LA","      Lao People's Democratic Republic"]
["MO","      Macao"]
["MY","      Malaysia*"]
["MV","      Maldives"]
["MN","      Mongolia"]
["MM","      Myanmar"]
["NP","      Nepal"]
["PK","      Pakistan"]
["PH","      Philippines*"]
["SG","      Singapore*"]
["LK","      Sri Lanka"]
["TW","      Chinese Taipei"]
["TJ","      Tajikistan"]
["TH","      Thailand*"]
["TL","      Timor-Leste"]
["TM","      Turkmenistan"]
["UZ","      Uzbekistan"]
["VN","      Viet Nam*"]
["O1","AUSTRALIA, OCEANIA & POLAR REGIONS"]
["O19","Oceania & Polar regions not allocated"]
["AS","American Samoa"]
["AQ","Antarctica"]
["AU","Australia*"]
["BV","Bouvet Island"]
["CX","Christmas Islands"]
["CC","Cocos Islands"]
["CK","Cook Islands"]
["FJ","Fiji"]
["PF","French Polynesia"]
["TF","French Southern Territories"]
["GU","Guam"]
["HM","Heard islands and Mc Donald islands"]
["KI","Kiribati"]
["MH","Marshall Islands"]
["FM","Micronesia, Federated States of"]
["NR","Nauru"]
["NC","New Caledonia"]
["NZ","New Zealand*"]
["NU","Niue"]
["NF","Norfolk Island"]
["MP","Northern Mariana Islands"]
["PW","Palau"]
["PG","Papua New Guinea"]
["PN","Pitcairn"]
["WS","Samoa"]
["SB","Solomon Islands"]
["GS","South Georgia  and the South Sandwich Islands"]
["TK","Tokelau"]
["TO","Tonga"]
["TV","Tuvalu"]
["UM","US Minor Outllying islands"]
["VU","Vanuatu"]
["WF","Wallis and Futuna"]
["ECONOMIC AND MONETARY ZONES"]
["P6","OECD37*  (for 2020)"]
["P5","OECD36*  (for 2018-2019)"]
["P4","OECD35*  (for 2016-2017)"]
["P1","OECD34*  (for 2010-2015)"]
["P00","OECD30*  (until 2009 only)"]
["B6","EU27 (without the United Kingdom)* (from 2020)"]
["B5","EU28* (for 2013-2019)"]
["B4","EU27* (for 2007-2012)"]
["B3","EU25* (for 2004-2006 only)"]
["B2","EU15* (until 2003 only)"]
["R4","ASEAN*"]
["R220","G20 countries*"]
["R221","G20 OECD countries*"]
["R222","G20 Non-OECD ctr.*"]
["F98","MENA (Middle East and North Africa countries)*"]
["R25","Total Official Development Assistance (ODA) recipients*"]
["R251","ODA recipients -Europe*"]
["R252","ODA recipients-Africa*"]
["R253","ODA recipients-America*"]
["R254","ODA recipients-Asia*"]
["R255","ODA recipients-Oceania*"]
["[1] Footnote by Turkey:\n The information in this document with reference to “Cyprus” relates to the southern part of the Island. There is no single authority representing both Turkish and Greek Cypriot people on the Island. Turkey recognizes the Turkish Republic of Northern Cyprus (TRNC). Until a lasting and equitable solution is found within the context of United Nations, Turkey shall preserve its position concerning the “Cyprus” issue. \n Footnote by all the European Union Member States of the OECD and the European Union:\n The Republic of Cyprus is recognized by all members of the United Nations with the exception of Turkey. The information in this document relates to the area under the effective control of the Government of the Republic of Cyprus.\nFootnote by Turkey:\n The information in this document with reference to “Cyprus” relates to the southern part of the Island. There is no single authority representing both Turkish and Greek Cypriot people on the Island. Turkey recognizes the Turkish Republic of Northern Cyprus (TRNC). Until a lasting and equitable solution is found within the context of United Nations, Turkey shall preserve its position concerning the “Cyprus” issue. \n Footnote by all the European Union Member States of the OECD and the European Union:\n The Republic of Cyprus is recognized by all members of the United Nations with the exception of Turkey. The information in this document relates to the area under the effective control of the Government of the Republic of Cyprus.\n"]
[]
["* Priority items to avoid when flagging data for secondary confidentiality. If the secondary confidentiality checking exercise is too burdensome for reporting the full GEO breakdown for FDI instruments and for series of SPEs/excluding resident SPE, the priority items should be reported while the other items can be flagged as non-publishable, unless they play a significant role in total FDI. "]
["Cells highlighted in grey are secondary priority"]

{"sheet":"2-FLOW-GEO-OUT","index":10,"n_rows":294,"n_cols":62,"rows_kept":294,"cut":false,"hidden":false,"merged":[[0,1,0,24],[3,56,3,57],[3,58,3,59],[3,60,3,61],[3,46,3,47],[3,48,3,49],[3,50,3,51],[3,52,3,53],[3,54,3,55],[3,36,3,37],[3,38,3,39],[3,40,3,41],[3,42,3,43],[3,44,3,45],[3,26,3,27],[3,28,3,29],[3,30,3,31],[3,32,3,33],[3,34,3,35],[5,46,5,47],[5,48,5,49],[5,40,5,41],[5,42,5,43],[5,44,5,45],[5,50,5,51],[5,52,5,53],[3,2,3,3],[3,4,3,5],[3,6,3,7],[3,8,3,9],[3,10,3,11],[3,12,3,13],[3,14,3,15],[3,16,3,17],[3,18,3,19],[3,20,3,21],[3,22,3,23],[3,24,3,25],[5,36,5,37],[5,38,5,39],[5,12,5,13],[5,14,5,15],[5,16,5,17],[5,18,5,19],[5,30,5,31],[1,2,1,19],[1,20,1,25],[1,26,1,43],[1,44,1,61],[2,2,2,7],[2,8,2,13],[2,14,2,19],[2,26,2,31],[2,32,2,37],[2,38,2,43],[2,44,2,49],[2,50,2,55],[2,56,2,61]]}
["                        ","QUESTIONNAIRE 2-FLOW-GEO-OUT    Direct Investment OUTFLOWS by geographical allocation (Directional Principle).                                                                                                                                                                                                                                                                                                                                                                                                                                                                                                                                                                       Total FDI outflows series should be reported with the full geographical breakdown. Items marked with * are to be avoided in priority when flagging data for secondary confidentiality. Also, when secondary confidentiality process becomes too burdensome to report the full geographical breakdown for series of FDI instruments and of series excluding/of resident SPEs, those priority items are to be reported in priority while other items can be flagged as non publishable.",null,null,null,null,null,null,null,null,null,null,null,null,null,null,null,null,null,null,null,null,null,null,null,null,null,null,null,null,null,null,null,null,null,null,null,null,null,null,null,null,null,null,null,null,null,null,null,null,null,null,null,null,null,null,null,null,null,null,"OECD"]
["COUNTRY:",{"$f":"Country","v":""},"EQUITY (F5A)",null,null,null,null,null,null,null,null,null,null,null,null,null,null,null,null,null,"REINVESTMENT OF EARNINGS (F5B)",null,null,null,null,null,"DEBT INSTRUMENTS (FL)",null,null,null,null,null,null,null,null,null,null,null,null,null,null,null,null,null,"TOTAL FDI OUTFLOWS (F)"]
["YEAR:  ",{"$f":"Year","v":2020},"Excl. Res SPEs (ROU)\n",null,null,null,null,null,"Res SPEs (RSP)\n",null,null,null,null,null,"All Entities (ALL)\n",null,null,null,null,null,"Excl. Res. SPEs (ROU)",null,"Res. SPEs (RSP)",null,"All Entities (ALL)",null,"Excl. Res SPEs (ROU)\n",null,null,null,null,null,"Res SPEs (RSP)\n",null,null,null,null,null,"All Entities (ALL)\n",null,null,null,null,null,"Excl. Res SPEs (ROU)\n",null,null,null,null,null,"Res SPEs (RSP)\n",null,null,null,null,null,"All Entities (ALL)\n"]
["CURRENCY:  ",{"$f":"Currency","v":0},"Assets",null,"Liabilities",null,"Net outward",null,"Assets",null,"Liabilities",null,"Net outward",null,"Assets",null,"Liabilities",null,"Net outward",null,"Net outward",null,"Net outward",null,"Net outward",null,"Assets",null,"Liabilities",null,"Net outward",null,"Assets",null,"Liabilities",null,"Net outward",null,"Assets",null,"Liabilities",null,"Net outward",null,"Assets",null,"Liabilities",null,"Net outward",null,"Assets",null,"Liabilities",null,"Net outward",null,"Assets",null,"Liabilities",null,"Net outward"]
["UNITS:           ","MILLIONS","A",null,"L",null,"NO",null,"A",null,"L",null,"NO",null,"A",null,"L",null,"NO",null,"NO",null,"NO",null,"NO",null,"A",null,"L",null,"NO",null,"A",null,"L",null,"NO",null,"A",null,"L",null,"NO",null,"A",null,"L",null,"NO",null,"A",null,"L",null,"NO",null,"A",null,"L",null,"NO"]
["STATISTICAL UNIT:",{"$f":"StatUnit","v":""},"(1)",null,"(2)",null,"(3)                                        (1-2)",null,"(4)",null,"(5)",null,"(6)                                                 (4-5)",null,"(7)                                                   (1+4)",null,"(8)                                                (2+5)",null,"(9)                                                 (7-8)",null,"(10)",null,"(11)",null,"(12)                                                 (10+11)",null,"(13)",null,"(14)",null,"(15)                                               (13-14)",null,"(16)",null,"(17)",null,"(18)                                               (16-17)",null,"(19)                                               (13+16)",null,"(20)                                              (14+17)",null,"(21)                                               (19-20)",null,"(22)                                              (1+10+13)",null,"(23)                                              (2+14)",null,"(24)                                   (3+10+15)",null,"(25)                                              (4+11+16)",null,"(26)                                              (5+17)",null,"(27)                 (6+11+18)",null,"(28)                                     (22+25)",null,"(29)                                     (23+26)",null,"(30)                                     (24+27)"]
["VALUATION:",{"$f":"ValuationFlows","v":""},null,"cc",null,"cc",null,"cc",null,"cc",null,"cc",null,"cc",null,"cc",null,"cc",null,"cc",null,"cc",null,"cc",null,"cc",null,"cc",null,"cc",null,"cc",null,"cc",null,"cc",null,"cc",null,"cc",null,"cc",null,"cc",null,"cc",null,"cc",null,"cc",null,"cc",null,"cc",null,"cc",null,"cc",null,"cc",null,"cc"]
["W0","WORLD*"]
["W190","World not allocated"]
["E1","EUROPE "]
["E19","Europe not allocated"]
["AL"," Albania"]
["AD"," Andorra"]
["AT"," Austria*"]
["BY"," Belarus"]
["BE"," Belgium*"]
["BA"," Bosnia and Herzegovina"]
["BG"," Bulgaria*"]
["HR"," Croatia"]
["CY"," Cyprus*,1"]
["CZ"," Czech Republic*"]
["DK"," Denmark*"]
["EE"," Estonia*"]
["FO"," Faroe Islands"]
["FI"," Finland*"]
["FR"," France*"]
["DE"," Germany*"]
["GI"," Gibraltar"]
["GR"," Greece*"]
["GG"," Guernsey"]
["VA"," Holy see (Vatican City State)"]
["HU"," Hungary*"]
["IS"," Iceland*"]
["IE"," Ireland*"]
["IM"," Isle of Man"]
["IT"," Italy*"]
["JE"," Jersey"]
["XK","Kosovo"]
["LV"," Latvia*"]
["LI"," Liechtenstein"]
["LT"," Lithuania*"]
["LU"," Luxembourg*"]
["MK"," Macedonia, the Former Yugoslav Republic of "]
["MT"," Malta"]
["MD"," Moldova"]
["ME"," Montenegro"]
["NL"," Netherlands*"]
["NO"," Norway*"]
["PL"," Poland*"]
["PT"," Portugal*"]
["RO"," Romania*"]
["RU"," Russia*"]
["SM"," San Marino"]
["RS"," Serbia"]
["SK"," Slovakia*"]
["SI"," Slovenia*"]
["ES"," Spain*"]
["SE"," Sweden*"]
["CH"," Switzerland* "]
["TR","Turkey*"]
["UA","Ukraine*"]
["GB"," United Kingdom*"]
["R1","Belgum-Luxembourg (until end 2002)"]
["CS","Serbia and Montenegro (until end 2006)"]
["F1","AFRICA* "]
["F19","Africa not allocated"]
["F4","   Northern Africa"]
["DZ","Algeria*"]
["EG","Egypt*"]
["LY","Libyan Arab Jamahiriya*"]
["MA","Morocco*"]
["TN","Tunisia*"]
["F2"," Other African countries"]
["AO"," Angola"]
["BJ"," Benin"]
["BW"," Botswana"]
["IO"," British Indian Ocean Territory"]
["BF"," Burkina Faso"]
["BI"," Burundi"]
["CM"," Cameroon"]
["CV"," Cape Verde"]
["CF"," Central African Republic"]
["TD"," Chad"]
["KM"," Comoros"]
["CG"," Congo"]
["CI"," Côte d'Ivoire"]
["CD"," Congo, the Democratic Republic of the "]
["DJ"," Djibouti"]
["GQ"," Equatorial Guinea"]
["ER"," Eritrea"]
["ET"," Ethiopia"]
["GA"," Gabon"]
["GM"," Gambia"]
["GH"," Ghana"]
["GN"," Guinea"]
["GW"," Guinea-Bissau"]
["KE"," Kenya"]
["LS"," Lesotho"]
["LR"," Liberia"]
["MG"," Madagascar"]
["MW"," Malawi"]
["ML"," Mali"]
["MR"," Mauritania"]
["MU"," Mauritius"]
["MZ"," Mozambique"]
["NA"," Namibia"]
["NE"," Niger"]
["NG"," Nigeria*"]
["RW"," Rwanda"]
["SH"," St Helena"]
["ST"," Sao Tome & Principe"]
["SN"," Senegal"]
["SC"," Seychelles"]
["SL"," Sierra Leone"]
["SO"," Somalia"]
["ZA"," South Africa*"]
["SD"," Sudan"]
["SS"," South Sudan"]
["SZ"," Swaziland"]
["TZ"," Tanzania, United Republic of"]
["TG"," Togo"]
["UG"," Uganda"]
["ZM"," Zambia"]
["ZW","Zimbabwe"]
["A1","AMERICA "]
["A19","America not allocated"]
["A2","   Northern America"]
["CA","      Canada*"]
["GL","      Greenland"]
["US","      United States*"]
["A5","   Central America and Caribbean countries"]
["AI","      Anguilla"]
["AG","      Antigua and Barbuda"]
["AW","      Aruba"]
["BS","      Bahamas"]
["BB","      Barbados"]
["BZ","      Belize"]
["BM","      Bermuda"]
["BQ","      Bonaire, Saint Eustatius and Saba (from 2011 onwards)"]
["KY","      Cayman Islands"]
["CR","      Costa Rica*"]
["CU","      Cuba"]
["CW","      Curaçao (from 2011 onwards)"]
["DM","      Dominica"]
["DO","      Dominican Republic"]
["SV","      El Salvador"]
["GD","      Grenada"]
["GT","      Guatemala"]
["HT","      Haiti"]
["HN","      Honduras"]
["JM","      Jamaica"]
["MX","      Mexico* "]
["MS","      Montserrat"]
["NI","      Nicaragua"]
["PA","      Panama*"]
["KN","      Saint Kitts and Nevis"]
["LC","      Saint Lucia"]
["VC","      Saint Vincent and the Grenadines"]
["SX","      Sint Maarten (from 2011 onwards)"]
["TT","      Trinidad and Tobago"]
["TC","      Turks and Caicos Islands"]
["VG","      Virgin Islands, British"]
["VI","      Virgin Islands, U.S."]
["AN","      Netherlands Antilles (until end 2010)"]
["A7","   South America"]
["AR","      Argentina*"]
["BO","      Bolivia"]
["BR","      Brazil*"]
["CL","      Chile*"]
["CO","      Colombia*"]
["EC","      Ecuador"]
["FK","      Falkland Islands (Malvinas)"]
["GY","      Guyana"]
["PY","      Paraguay"]
["PE","      Peru*"]
["SR","      Suriname"]
["UY","      Uruguay*"]
["VE","      Venezuela*"]
["S1","ASIA "]
["S19","Asia not allocated"]
["S3","   Near and Middle East countries*"]
["S35","      Gulf Arabian countries"]
["BH","         Bahrain"]
["IQ","         Iraq"]
["KW","         Kuwait*"]
["OM","         Oman"]
["QA","         Qatar"]
["SA","         Saudi Arabia*"]
["AE","         United Arab Emirates*"]
["YE","         Yemen"]
["S37","      Other Near and Middle East countries"]
["AM","         Armenia"]
["AZ","         Azerbaijan"]
["GE","         Georgia"]
["IL","         Israel*"]
["JO","         Jordan*"]
["LB","         Lebanon"]
["PS","         Palestinian Territory, Occupied"]
["SY","         Syrian Arab Republic"]
["S6","Other Asian countries"]
["AF","      Afghanistan"]
["BD","      Bangladesh"]
["BT","      Bhutan"]
["BN","      Brunei Darussalam"]
["KH","      Cambodia (Kampuchea)"]
["CN","      China*"]
["HK","      Hong Kong, China*"]
["IN","      India*"]
["ID","      Indonesia*"]
["IR","      Iran, Islamic Republic of"]
["JP","      Japan*"]
["KZ","      Kazakhstan"]
["KP","      Korea, Democratic People's Republic of (North Korea)"]
["KR","      Korea, Republic of (South Korea)*"]
["KG","      Kyrgyzstan"]
["LA","      Lao People's Democratic Republic"]
["MO","      Macao"]
["MY","      Malaysia*"]
["MV","      Maldives"]
["MN","      Mongolia"]
["MM","      Myanmar"]
["NP","      Nepal"]
["PK","      Pakistan"]
["PH","      Philippines*"]
["SG","      Singapore*"]
["LK","      Sri Lanka"]
["TW","      Chinese Taipei"]
["TJ","      Tajikistan"]
["TH","      Thailand*"]
["TL","      Timor-Leste"]
["TM","      Turkmenistan"]
["UZ","      Uzbekistan"]
["VN","      Viet Nam*"]
["O1","AUSTRALIA, OCEANIA & POLAR REGIONS"]
["O19","Oceania & Polar regions not allocated"]
["AS","American Samoa"]
["AQ","Antarctica"]
["AU","Australia*"]
["BV","Bouvet Island"]
["CX","Christmas Islands"]
["CC","Cocos Islands"]
["CK","Cook Islands"]
["FJ","Fiji"]
["PF","French Polynesia"]
["TF","French Southern Territories"]
["GU","Guam"]
["HM","Heard islands and Mc Donald islands"]
["KI","Kiribati"]
["MH","Marshall Islands"]
["FM","Micronesia, Federated States of"]
["NR","Nauru"]
["NC","New Caledonia"]
["NZ","New Zealand*"]
["NU","Niue"]
["NF","Norfolk Island"]
["MP","Northern Mariana Islands"]
["PW","Palau"]
["PG","Papua New Guinea"]
["PN","Pitcairn"]
["WS","Samoa"]
["SB","Solomon Islands"]
["GS","South Georgia  and the South Sandwich Islands"]
["TK","Tokelau"]
["TO","Tonga"]
["TV","Tuvalu"]
["UM","US Minor Outllying islands"]
["VU","Vanuatu"]
["WF","Wallis and Futuna"]
["ECONOMIC AND MONETARY ZONES"]
["P6","OECD37*  (for 2020)"]
["P5","OECD36*  (for 2018-2019)"]
["P4","OECD35*  (for 2016-2017)"]
["P1","OECD34*  (for 2010-2015)"]
["P00","OECD30*  (until 2009 only)"]
["B6","EU27 (without the United Kingdom)* (from 2020)"]
["B5","EU28* (for 2013-2019)"]
["B4","EU27* (for 2007-2012)"]
["B3","EU25* (for 2004-2006 only)"]
["B2","EU15* (until 2003 only)"]
["R4","ASEAN*"]
["R220","G20 countries*"]
["R221","G20 OECD countries*"]
["R222","G20 Non-OECD ctr.*"]
["F98","MENA (Middle East and North Africa countries)*"]
["R25","Total Official Development Assistance (ODA) recipients*"]
["R251","ODA recipients -Europe*"]
["R252","ODA recipients-Africa*"]
["R253","ODA recipients-America*"]
["R254","ODA recipients-Asia*"]
["R255","ODA recipients-Oceania*"]
["[1] Footnote by Turkey:\n The information in this document with reference to “Cyprus” relates to the southern part of the Island. There is no single authority representing both Turkish and Greek Cypriot people on the Island. Turkey recognizes the Turkish Republic of Northern Cyprus (TRNC). Until a lasting and equitable solution is found within the context of United Nations, Turkey shall preserve its position concerning the “Cyprus” issue. \n Footnote by all the European Union Member States of the OECD and the European Union:\n The Republic of Cyprus is recognized by all members of the United Nations with the exception of Turkey. The information in this document relates to the area under the effective control of the Government of the Republic of Cyprus.\nFootnote by Turkey:\n The information in this document with reference to “Cyprus” relates to the southern part of the Island. There is no single authority representing both Turkish and Greek Cypriot people on the Island. Turkey recognizes the Turkish Republic of Northern Cyprus (TRNC). Until a lasting and equitable solution is found within the context of United Nations, Turkey shall preserve its position concerning the “Cyprus” issue. \n Footnote by all the European Union Member States of the OECD and the European Union:\n The Republic of Cyprus is recognized by all members of the United Nations with the exception of Turkey. The information in this document relates to the area under the effective control of the Government of the Republic of Cyprus.\n"]
[]
["* Priority items to avoid when flagging data for secondary confidentiality. If the secondary confidentiality checking exercise is too burdensome for reporting the full GEO breakdown for FDI instruments and for series of SPEs/excluding resident SPE, the priority items should be reported while the other items can be flagged as non-publishable, unless they play a significant role in total FDI. "]
["Cells highlighted in grey are secondary priority"]

{"sheet":"2-FLOW-IND-IN","index":11,"n_rows":94,"n_cols":62,"rows_kept":94,"cut":false,"hidden":false,"merged":[[2,38,2,43],[2,44,2,49],[2,50,2,55],[2,56,2,61],[1,26,1,43],[1,44,1,61],[3,34,3,35],[3,38,3,39],[3,40,3,41],[3,42,3,43],[3,44,3,45],[3,26,3,27],[3,28,3,29],[3,30,3,31],[3,32,3,33],[2,26,2,31],[2,32,2,37],[3,60,3,61],[3,46,3,47],[3,48,3,49],[3,50,3,51],[3,52,3,53],[3,56,3,57],[3,58,3,59],[1,20,1,25],[5,12,5,13],[1,2,1,19],[3,2,3,3],[3,4,3,5],[3,6,3,7],[3,8,3,9],[3,10,3,11],[3,14,3,15],[3,16,3,17],[3,18,3,19],[3,20,3,21],[3,22,3,23],[3,24,3,25],[2,2,2,7],[2,8,2,13],[2,14,2,19],[5,16,5,17],[5,18,5,19],[6,2,7,2],[6,9,7,9],[6,10,7,10],[6,11,7,11],[6,12,7,12],[6,13,7,13],[6,14,7,14],[6,3,7,3],[6,4,7,4],[6,5,7,5],[6,6,7,6],[6,7,7,7],[6,8,7,8],[6,27,7,27],[6,28,7,28],[6,29,7,29],[6,30,7,30],[6,31,7,31],[6,32,7,32],[6,15,7,15],[6,16,7,16],[6,17,7,17],[6,18,7,18],[6,19,7,19],[6,26,7,26],[6,25,7,25],[6,41,7,41],[6,42,7,42],[6,43,7,43],[6,44,7,44],[6,33,7,33],[6,34,7,34],[6,35,7,35],[6,36,7,36],[6,37,7,37],[6,38,7,38],[6,57,7,57],[6,58,7,58],[6,59,7,59],[6,60,7,60],[6,61,7,61],[6,20,7,20],[6,21,7,21],[6,22,7,22],[6,23,7,23],[6,24,7,24],[6,51,7,51],[6,52,7,52],[6,53,7,53],[6,54,7,54],[6,55,7,55],[6,56,7,56],[6,45,7,45],[6,46,7,46],[6,47,7,47],[6,48,7,48],[6,49,7,49],[6,50,7,50],[6,39,7,39],[6,40,7,40]]}
["                        ","QUESTIONNAIRE 2-FLOW-IND-IN  Direct Investment INFLOWS by industry classification (ISIC 4) (Directional Principle)",null,null,null,null,null,null,null,null,null,null,null,null,null,null,null,null,null,null,null,null,null,null,null,null,null,null,null,null,null,null,null,null,null,null,null,null,null,null,null,null,null,null,null,null,null,null,null,null,null,null,null,null,null,null,null,null,null,null,"OECD"]
["COUNTRY:",{"$f":"Country","v":""},"EQUITY (F5A)",null,null,null,null,null,null,null,null,null,null,null,null,null,null,null,null,null,"REINVESTMENT OF EARNINGS (F5B)",null,null,null,null,null,"DEBT INSTRUMENTS (FL)",null,null,null,null,null,null,null,null,null,null,null,null,null,null,null,null,null,"TOTAL FDI INFLOWS (F)"]
["YEAR:  ",{"$f":"Year","v":2020},"Excl. Res SPEs (ROU)\n",null,null,null,null,null,"Res SPEs (RSP)\n",null,null,null,null,null,"All Entities (ALL)\n",null,null,null,null,null,"Excl. Res. SPEs (ROU)",null,"Res. SPEs (RSP)",null,"All Entities (ALL)",null,"Excl. Res SPEs (ROU)\n",null,null,null,null,null,"Res SPEs (RSP)\n",null,null,null,null,null,"All Entities (ALL)\n",null,null,null,null,null,"Excl. Res SPEs (ROU)\n",null,null,null,null,null,"Res SPEs (RSP)\n",null,null,null,null,null,"All Entities (ALL)\n"]
["CURRENCY:  ",{"$f":"Currency","v":0},"Liabilities",null,"Assets",null,"Net Inward",null,"Liabilities",null,"Assets",null,"Net Inward",null,"Liabilities",null,"Assets",null,"Net Inward",null,"Net Inward",null,"Net Inward",null,"Net Inward",null,"Liabilities",null,"Assets",null,"Net Inward",null,"Liabilities",null,"Assets",null,"Net Inward",null,"Liabilities",null,"Assets",null,"Net Inward",null,"Liabilities",null,"Assets",null,"Net Inward",null,"Liabilities",null,"Assets",null,"Net Inward",null,"Liabilities",null,"Assets",null,"Net Inward"]
["UNITS:           ","MILLIONS","L",null,"A",null,"NI",null,"L",null,"A",null,"NI",null,"L",null,"A",null,"NI",null,"NI",null,"NI",null,"NI",null,"L",null,"A",null,"NI",null,"L",null,"A",null,"NI",null,"L",null,"A",null,"NI",null,"L",null,"A",null,"NI",null,"L",null,"A",null,"NI",null,"L",null,"A",null,"NI"]
["STATISTICAL UNIT:",{"$f":"StatUnit","v":""},"(1)",null,"(2)",null,"(3)                                        (1-2)",null,"(4)",null,"(5)",null,"(6)                                               (4-5)",null,"(7)                                        (1+4)",null,"(8)                                               (2+5)",null,"(9)                                               (7-8)",null,"(10)",null,"(11)",null,"(12)                               (10+11)",null,"(13)",null,"(14)",null,"(15)                                              (13-14)",null,"(16)",null,"(17)",null,"(18)                                             (16-17)",null,"(19)                                             (13+16)",null,"(20)                                            (14+17)",null,"(21)                                             (19-20)",null,"(22)                                             (1+10+13)",null,"(23)                                            (2+14)",null,"(24)                                   (3+10+15)",null,"(25)                 (4+11+16)",null,"(26)                                     (5+17)",null,"(27)                 (6+11+18)",null,"(28)                                     (22+25)",null,"(29)                                     (23+26)",null,"(30)                                     (24+27)"]
["VALUATION:",{"$f":"ValuationFlows","v":""},null,"cc",null,"cc",null,"cc",null,"cc",null,"cc",null,"cc",null,"cc",null,"cc",null,"cc",null,"cc",null,"cc",null,"cc",null,"cc",null,"cc",null,"cc",null,"cc",null,"cc",null,"cc",null,"cc",null,"cc",null,"cc",null,"cc",null,"cc",null,"cc",null,"cc",null,"cc",null,"cc",null,"cc",null,"cc",null,"cc"]
["ACTIVITY ALLOCATION:",{"$f":"EcoActInflows","v":"Direct investment enterprise"}]
["A","AGRICULTURE, FORESTRY AND FISHING (Section A) "]
["B","MINING AND QUARRYING (Section B)"]
["B06_09","Of which:      Extraction of crude petroleum and gas; mining support services"]
["A_B","TOTAL PRIMARY SECTOR (Sections A and B)"]
["C","MANUFACTURING (Section C) "]
["C10T12","Food products, beverage and tobacco products"]
["C13_14","Textiles and wearing apparel"]
["C16T18","Manufacture of wood, paper, and their products; printing and reproduction or recorded media"]
["C13T18X15","[TOTAL textiles + wood activities ](C13_14+C16T18)"]
["C19","Coke and refined petroleum products"]
["C20","Manufacture of chemicals and chemical products"]
["C21","Pharmaceuticals products and preparation"]
["C22","Rubber and plastic products"]
["C19T22","[TOTAL petroleum, chemical, pharmaceuticals, rubber and plastic products] (C19+C20+C21+C22) "]
["C24_25","Basic metal and fabricated metal products"]
["C26","Computer, electronic and optical products"]
["C262"," Of which: Computers and peripheral equipment"]
["C263_264","      Communication equipment and consumer electronics"]
["C265_266","       Instrument and appliances for measuring, testing and navigation; watches and clock; irradiation, electromedical and electrotherapeutic equipment"]
["C28","Machinery and equipment n. e. c"]
["C24T28X27","[TOTAL metal, computer and machinery] (C24_C25+C26+C28)"]
["C29","Motor vehicles, trailers and semi-trailers"]
["C30","Other transport equipments"]
["C303","Of which:   Manufacture of aircraft and spacecraft"]
["C29_30","[TOTAL vehicles and other transport equipment] (C29+C30)"]
["C_OTH","Other manufacturing"]
["D35","ELECTRICITY, GAS, STEAM AND AIR CONDITIONING SUPPLY (Section D)"]
["E","WATER SUPPLY, SEWERAGE, WASTE MANAGEMENT AND REMEDIATION ACTIVITIES (Section E)"]
["E36","Water collection, treatment and supply"]
["E37T39","Sewerage, waste management and remediation activities"]
["F","CONSTRUCTION (Section F)"]
["G","WHOLESALE AND RETAILTRADE; REPAIR OF MOTOR VEHICLES AND MOTOR CYCLES (Section G)"]
["G45","Wholesale and retail trade and repair of motor vehicles and motorcycles"]
["G46","Wholesale trade, except of motor vehicles and motor cycles"]
["G47","Retail trade, except of motor vehicles and motor cycles"]
["H","TRANSPORTATION AND STORAGE (Section H)"]
["H49","Land transport and transport via pipelines"]
["H50","Water transport"]
["H51","Air transport"]
["H52","Warehousing and support activities for transportation"]
["HX53","[TOTAL transport and storage] (H49+H50+H51+H52)"]
["H53","Post and courier activities"]
["I","ACCOMODATION AND FOOD SERVICE ACTIVITIES (Section I)"]
["J","INFORMATION AND COMMUNICATION (Section J) "]
["J59_60","Motion picture, video and TV programme production, sound recording and music publishing activities; programming and broadcasting activities"]
["J61","Telecommunications"]
["J58_62_63","Other information and communication activities"]
["K","FINANCIAL AND INSURANCE ACTIVITIES (Section K) "]
["K64","Financial services activities, except insurance and pension funding"]
["K641","Of which:   Monetary intermediation"]
["K642","                        Activities of holding companies"]
["K643","                       Trusts, funds and similar financial entities"]
["K65","Insurance, reinsurance and pension funding, except compulsory social security"]
["K66","Activities auxiliary to financial services and insurance activities"]
["L","REAL ESTATE ACTIVITIES (Section L) "]
["M","PROFESSIONAL, SCIENTIFIC AND TECHNICAL ACTIVITIES (Section M)"]
["M69","Legal and accounting activities"]
["M691","     Legal activities"]
["M692","     Accounting, bookkeeping and auditing activities, tax consultancy"]
["M70","Activities of head offices; management and consultancy activities "]
["M701","      Activities of head offices"]
["M702","      Management consultancy activities"]
["M71","Architecture and engineering activities, technical testing and analysis"]
["M72","Scientific research and development"]
["M73","Advertising and market research"]
["M731","     Advertising"]
["M732","     Market research and public opinion polling"]
["M74_75","Other professional, scientific and technical activities"]
["N","ADMINISTRATIVE AND SUPPORT SERVICE ACTIVITIES (Section N)"]
["N77","Rental and leasing activities"]
["N78T82","Other administrative and support services activities"]
["N79"," Of which: Travel agency, tour operator reservation service and related activities"]
["P85","EDUCATION (Section P)"]
["Q","HUMAN HEALTH AND SOCIAL WORK ACTIVITIES (Section Q)"]
["R","ARTS, ENTERTAINMENT AND RECREATION (Section R)"]
["R90","Creative, arts and entertainment activities"]
["R91","Libraries, archives, museums and other cultural activities"]
["R92_93","Sports activities and amusement and recreation activities; gambling and betting activities"]
["O_T_U","Public administration; activities of households and of extraterritorial organisations  (Section O, T, U)"]
["S","OTHER SERVICE ACTIVITIES (Section S)"]
["S94","Activities of membership organisations"]
["S95_96","Repair of computers and personal and household goods, other services"]
["GTU","TOTAL SERVICES (Sections G to U)"]
["_X","Unallocated"]
["PRV_RE","Priv. purchase & sales of real estate"]
["FDI_T","TOTAL"]

{"sheet":"2-FLOW-IND-OUT","index":12,"n_rows":94,"n_cols":62,"rows_kept":94,"cut":false,"hidden":false,"merged":[[3,20,3,21],[3,56,3,57],[3,58,3,59],[3,60,3,61],[3,12,3,13],[3,36,3,37],[3,54,3,55],[3,42,3,43],[3,44,3,45],[3,46,3,47],[3,48,3,49],[3,22,3,23],[3,24,3,25],[3,26,3,27],[3,50,3,51],[3,52,3,53],[3,28,3,29],[3,30,3,31],[3,32,3,33],[3,34,3,35],[3,38,3,39],[3,40,3,41],[5,12,5,13],[5,16,5,17],[5,18,5,19],[3,2,3,3],[3,4,3,5],[3,6,3,7],[3,8,3,9],[3,10,3,11],[3,14,3,15],[3,16,3,17],[3,18,3,19],[1,2,1,19],[1,20,1,25],[1,26,1,43],[1,44,1,61],[2,2,2,7],[2,8,2,13],[2,14,2,19],[2,26,2,31],[2,32,2,37],[2,38,2,43],[2,44,2,49],[2,50,2,55],[2,56,2,61],[6,8,7,8],[6,9,7,9],[6,10,7,10],[6,11,7,11],[6,12,7,12],[6,13,7,13],[6,2,7,2],[6,3,7,3],[6,4,7,4],[6,5,7,5],[6,6,7,6],[6,7,7,7],[6,20,7,20],[6,21,7,21],[6,22,7,22],[6,23,7,23],[6,24,7,24],[6,25,7,25],[6,14,7,14],[6,15,7,15],[6,16,7,16],[6,17,7,17],[6,18,7,18],[6,19,7,19],[6,32,7,32],[6,33,7,33],[6,34,7,34],[6,35,7,35],[6,36,7,36],[6,37,7,37],[6,26,7,26],[6,27,7,27],[6,28,7,28],[6,29,7,29],[6,30,7,30],[6,31,7,31],[6,44,7,44],[6,45,7,45],[6,46,7,46],[6,47,7,47],[6,48,7,48],[6,49,7,49],[6,38,7,38],[6,39,7,39],[6,40,7,40],[6,41,7,41],[6,42,7,42],[6,43,7,43],[6,56,7,56],[6,57,7,57],[6,58,7,58],[6,59,7,59],[6,60,7,60],[6,61,7,61],[6,50,7,50],[6,51,7,51],[6,52,7,52],[6,53,7,53],[6,54,7,54],[6,55,7,55]]}
["                        ","QUESTIONNAIRE 2-FLOW-IND-OUT  Direct Investment OUTFLOWS by industry classification (ISIC 4) (Directional Principle)",null,null,null,null,null,null,null,null,null,null,null,null,null,null,null,null,null,null,null,null,null,null,null,null,null,null,null,null,null,null,null,null,null,null,null,null,null,null,null,null,null,null,null,null,null,null,null,null,null,null,null,null,null,null,null,null,null,null,"OECD"]
["COUNTRY:",{"$f":"Country","v":""},"EQUITY (F5A)",null,null,null,null,null,null,null,null,null,null,null,null,null,null,null,null,null,"REINVESTMENT OF EARNINGS (F5B)",null,null,null,null,null,"DEBT INSTRUMENTS (FL)",null,null,null,null,null,null,null,null,null,null,null,null,null,null,null,null,null,"TOTAL FDI OUTFLOWS (F)"]
["YEAR:  ",{"$f":"Year","v":2020},"Excl. Res SPEs (ROU)\n",null,null,null,null,null,"Res SPEs (RSP)\n",null,null,null,null,null,"All Entities (ALL)\n",null,null,null,null,null,"Excl. Res. SPEs (ROU)",null,"Res. SPEs (RSP)",null,"All Entities (ALL)",null,"Excl. Res SPEs (ROU)\n",null,null,null,null,null,"Res SPEs (RSP)\n",null,null,null,null,null,"All Entities (ALL)\n",null,null,null,null,null,"Excl. Res SPEs (ROU)\n",null,null,null,null,null,"Res SPEs (RSP)\n",null,null,null,null,null,"All Entities (ALL)\n"]
["CURRENCY:  ",{"$f":"Currency","v":0},"Assets",null,"Liabilities",null,"Net outward",null,"Assets",null,"Liabilities",null,"Net outward",null,"Assets",null,"Liabilities",null,"Net outward",null,"Net outward",null,"Net outward",null,"Net outward",null,"Assets",null,"Liabilities",null,"Net outward",null,"Assets",null,"Liabilities",null,"Net outward",null,"Assets",null,"Liabilities",null,"Net outward",null,"Assets",null,"Liabilities",null,"Net outward",null,"Assets",null,"Liabilities",null,"Net outward",null,"Assets",null,"Liabilities",null,"Net outward"]
["UNITS:           ","MILLIONS","A",null,"L",null,"NO",null,"A",null,"L",null,"NO",null,"A",null,"L",null,"NO",null,"NO",null,"NO",null,"NO",null,"A",null,"L",null,"NO",null,"A",null,"L",null,"NO",null,"A",null,"L",null,"NO",null,"A",null,"L",null,"NO",null,"A",null,"L",null,"NO",null,"A",null,"L",null,"NO"]
["STATISTICAL UNIT:",{"$f":"StatUnit","v":""},"(1)",null,"(2)",null,"(3)                                        (1-2)",null,"(4)",null,"(5)",null,"(6)                                               (4-5)",null,"(7)                                        (1+4)",null,"(8)                                               (2+5)",null,"(9)                                               (7-8)",null,"(10)",null,"(11)",null,"(12)                               (10+11)",null,"(13)",null,"(14)",null,"(15)                                              (13-14)",null,"(16)",null,"(17)",null,"(18)                                             (16-17)",null,"(19)                                             (13+16)",null,"(20)                                            (14+17)",null,"(21)                                             (19-20)",null,"(22)                                             (1+10+13)",null,"(23)                                            (2+14)",null,"(24)                                   (3+10+15)",null,"(25)                 (4+11+16)",null,"(26)                                     (5+17)",null,"(27)                 (6+11+18)",null,"(28)                                     (22+25)",null,"(29)                                     (23+26)",null,"(30)                                     (24+27)"]
["VALUATION:",{"$f":"ValuationFlows","v":""},null,"cc",null,"cc",null,"cc",null,"cc",null,"cc",null,"cc",null,"cc",null,"cc",null,"cc",null,"cc",null,"cc",null,"cc",null,"cc",null,"cc",null,"cc",null,"cc",null,"cc",null,"cc",null,"cc",null,"cc",null,"cc",null,"cc",null,"cc",null,"cc",null,"cc",null,"cc",null,"cc",null,"cc",null,"cc",null,"cc"]
["ACTIVITY ALLOCATION:",{"$f":"EcoActOutflows","v":"Direct investment enterprise"}]
["A","AGRICULTURE, FORESTRY AND FISHING (Section A) "]
["B","MINING AND QUARRYING (Section B)"]
["B06_09","Of which:      Extraction of crude petroleum and gas; mining support services"]
["A_B","TOTAL PRIMARY SECTOR (Sections A and B)"]
["C","MANUFACTURING (Section C) "]
["C10T12","Food products, beverage and tobacco products"]
["C13_14","Textiles and wearing apparel"]
["C16T18","Manufacture of wood, paper, and their products; printing and reproduction or recorded media"]
["C13T18X15","[TOTAL textiles + wood activities ](C13_14+C16T18)"]
["C19","Coke and refined petroleum products"]
["C20","Manufacture of chemicals and chemical products"]
["C21","Pharmaceuticals products and preparation"]
["C22","Rubber and plastic products"]
["C19T22","[TOTAL petroleum, chemical, pharmaceuticals, rubber and plastic products] (C19+C20+C21+C22) "]
["C24_25","Basic metal and fabricated metal products"]
["C26","Computer, electronic and optical products"]
["C262"," Of which: Computers and peripheral equipment"]
["C263_264","      Communication equipment and consumer electronics"]
["C265_266","       Instrument and appliances for measuring, testing and navigation; watches and clock; irradiation, electromedical and electrotherapeutic equipment"]
["C28","Machinery and equipment n. e. c"]
["C24T28X27","[TOTAL metal, computer and machinery] (C24_C25+C26+C28)"]
["C29","Motor vehicles, trailers and semi-trailers"]
["C30","Other transport equipments"]
["C303","Of which:   Manufacture of aircraft and spacecraft"]
["C29_30","[TOTAL vehicles and other transport equipment] (C29+C30)"]
["C_OTH","Other manufacturing"]
["D35","ELECTRICITY, GAS, STEAM AND AIR CONDITIONING SUPPLY (Section D)"]
["E","WATER SUPPLY, SEWERAGE, WASTE MANAGEMENT AND REMEDIATION ACTIVITIES (Section E)"]
["E36","Water collection, treatment and supply"]
["E37T39","Sewerage, waste management and remediation activities"]
["F","CONSTRUCTION (Section F)"]
["G","WHOLESALE AND RETAILTRADE; REPAIR OF MOTOR VEHICLES AND MOTOR CYCLES (Section G)"]
["G45","Wholesale and retail trade and repair of motor vehicles and motorcycles"]
["G46","Wholesale trade, except of motor vehicles and motor cycles"]
["G47","Retail trade, except of motor vehicles and motor cycles"]
["H","TRANSPORTATION AND STORAGE (Section H)"]
["H49","Land transport and transport via pipelines"]
["H50","Water transport"]
["H51","Air transport"]
["H52","Warehousing and support activities for transportation"]
["HX53","[TOTAL transport and storage] (H49+H50+H51+H52)"]
["H53","Post and courier activities"]
["I","ACCOMODATION AND FOOD SERVICE ACTIVITIES (Section I)"]
["J","INFORMATION AND COMMUNICATION (Section J) "]
["J59_60","Motion picture, video and TV programme production, sound recording and music publishing activities; programming and broadcasting activities"]
["J61","Telecommunications"]
["J58_62_63","Other information and communication activities"]
["K","FINANCIAL AND INSURANCE ACTIVITIES (Section K) "]
["K64","Financial services activities, except insurance and pension funding"]
["K641","Of which:   Monetary intermediation"]
["K642","                        Activities of holding companies"]
["K643","                       Trusts, funds and similar financial entities"]
["K65","Insurance, reinsurance and pension funding, except compulsory social security"]
["K66","Activities auxiliary to financial services and insurance activities"]
["L","REAL ESTATE ACTIVITIES (Section L) "]
["M","PROFESSIONAL, SCIENTIFIC AND TECHNICAL ACTIVITIES (Section M)"]
["M69","Legal and accounting activities"]
["M691","     Legal activities"]
["M692","     Accounting, bookkeeping and auditing activities, tax consultancy"]
["M70","Activities of head offices; management and consultancy activities "]
["M701","      Activities of head offices"]
["M702","      Management consultancy activities"]
["M71","Architecture and engineering activities, technical testing and analysis"]
["M72","Scientific research and development"]
["M73","Advertising and market research"]
["M731","     Advertising"]
["M732","     Market research and public opinion polling"]
["M74_75","Other professional, scientific and technical activities"]
["N","ADMINISTRATIVE AND SUPPORT SERVICE ACTIVITIES (Section N)"]
["N77","Rental and leasing activities"]
["N78T82","Other administrative and support services activities"]
["N79"," Of which: Travel agency, tour operator reservation service and related activities"]
["P85","EDUCATION (Section P)"]
["Q","HUMAN HEALTH AND SOCIAL WORK ACTIVITIES (Section Q)"]
["R","ARTS, ENTERTAINMENT AND RECREATION (Section R)"]
["R90","Creative, arts and entertainment activities"]
["R91","Libraries, archives, museums and other cultural activities"]
["R92_93","Sports activities and amusement and recreation activities; gambling and betting activities"]
["O_T_U","Public administration; activities of households and of extraterritorial organisations  (Section O, T, U)"]
["S","OTHER SERVICE ACTIVITIES (Section S)"]
["S94","Activities of membership organisations"]
["S95_96","Repair of computers and personal and household goods, other services"]
["GTU","TOTAL SERVICES (Sections G to U)"]
["_X","Unallocated"]
["PRV_RE","Priv. purchase & sales of real estate"]
["FDI_T","TOTAL"]

{"sheet":"2-INC-GEO","index":13,"n_rows":293,"n_cols":62,"rows_kept":293,"cut":false,"hidden":false,"merged":[[3,32,3,33],[0,1,0,24],[3,50,3,51],[1,38,1,49],[1,50,1,61],[2,2,2,5],[2,6,2,9],[2,10,2,13],[2,38,2,41],[2,42,2,45],[1,26,1,37],[2,26,2,29],[2,30,2,33],[2,34,2,37],[3,58,3,59],[2,58,2,61],[2,54,2,57],[2,46,2,49],[2,50,2,53],[3,60,3,61],[3,34,3,35],[3,36,3,37],[3,38,3,39],[3,46,3,47],[3,48,3,49],[3,52,3,53],[3,54,3,55],[3,56,3,57],[3,40,3,41],[3,42,3,43],[3,44,3,45],[3,2,3,3],[3,4,3,5],[3,6,3,7],[3,8,3,9],[3,30,3,31],[3,10,3,11],[3,12,3,13],[3,14,3,15],[3,16,3,17],[3,18,3,19],[3,20,3,21],[3,28,3,29],[3,22,3,23],[3,24,3,25],[3,26,3,27],[1,14,1,25],[2,14,2,17],[2,18,2,21],[2,22,2,25],[1,2,1,13]]}
["                        ","QUESTIONNAIRE 2-INC-GEO    Direct Investment INCOME by geographical allocation (Directional Principle).                                                                                                                                                                                                                                                                                                                                                                                                                                                                                                                                                                       Total FDI income series should be reported with the full geographical breakdown. Items marked with * are to be avoided in priority when flagging data for secondary confidentiality. Also, when secondary confidentiality process becomes too burdensome to report the full geographical breakdown for series of FDI instruments and of series excluding/of resident SPEs, those priority items are to be reported in priority while other items can be flagged as non publishable.",null,null,null,null,null,null,null,null,null,null,null,null,null,null,null,null,null,null,null,null,null,null,null,null,null,null,null,null,null,null,null,null,null,null,null,null,null,null,null,null,null,null,null,null,null,null,null,null,null,null,null,null,null,null,null,null,null,null,"OECD"]
["COUNTRY:",{"$f":"Country","v":""},"INCOME ON EQUITY-DIVIDENDS (D42S)",null,null,null,null,null,null,null,null,null,null,null,"INCOME ON EQUITY-REINVESTED EARNINGS (D43S)",null,null,null,null,null,null,null,null,null,null,null,"TOTAL INCOME ON EQUITY (D4S)",null,null,null,null,null,null,null,null,null,null,null,"INCOME ON DEBT (INTERESTS) (D4Q)",null,null,null,null,null,null,null,null,null,null,null,"TOTAL FDI INCOME (D4P)"]
["YEAR:  ",{"$f":"Year","v":2020},"Excl. Res SPEs (ROU)\n",null,null,null,"Res SPEs (RSP)\n",null,null,null,"All Entities (ALL)\n",null,null,null,"Excl. Res SPEs (ROU)\n",null,null,null,"Res SPEs (RSP)\n",null,null,null,"All Entities (ALL)\n",null,null,null,"Excl. Res SPEs (ROU)\n",null,null,null,"Res SPEs (RSP)\n",null,null,null,"All Entities (ALL)\n",null,null,null,"Excl. Res SPEs (ROU)\n",null,null,null,"Res SPEs (RSP)\n",null,null,null,"All Entities (ALL)\n",null,null,null,"Excl. Res SPEs (ROU)\n",null,null,null,"Res SPEs (RSP)\n",null,null,null,"All Entities (ALL)\n"]
["CURRENCY:  ",{"$f":"Currency","v":0},"Income on outward FDI",null,"Income on inward FDI",null,"Income on outward FDI",null,"Income on inward FDI",null,"Income on outward FDI",null,"Income on inward FDI",null,"Income on outward FDI",null,"Income on inward FDI",null,"Income on outward FDI",null,"Income on inward FDI",null,"Income on outward FDI",null,"Income on inward FDI",null,"Income on outward FDI",null,"Income on inward FDI",null,"Income on outward FDI",null,"Income on inward FDI",null,"Income on outward FDI",null,"Income on inward FDI",null,"Income on outward FDI",null,"Income on inward FDI",null,"Income on outward FDI",null,"Income on inward FDI",null,"Income on outward FDI",null,"Income on inward FDI",null,"Income on outward FDI",null,"Income on inward FDI",null,"Income on outward FDI",null,"Income on inward FDI",null,"Income on outward FDI",null,"Income on inward FDI"]
["UNITS:           ","MILLIONS","IO",null,"II",null,"IO",null,"II",null,"IO",null,"II",null,"IO",null,"II",null,"IO",null,"II",null,"IO",null,"II",null,"IO",null,"II",null,"IO",null,"II",null,"IO",null,"II",null,"IO",null,"II",null,"IO",null,"II",null,"IO",null,"II",null,"IO",null,"II",null,"IO",null,"II",null,"IO",null,"II"]
["STATISTICAL UNIT:",{"$f":"StatUnit","v":""},"(1)",null,"(2)",null,"(4)",null,"(5)",null,"(7)                                 (1+4)",null,"(8)                                 (2+5)",null,"(10)",null,"(11)",null,"(13)",null,"(14)",null,"(16)                                       (10+13)",null,"(17)                                       (11+14)",null,"(19)                                      (1+10)",null,"(20)                          (2+11)",null,"(22)                                     (4+13)",null,"(23)                            (5+14)",null,"(25)                                     (7+16)",null,"(26)                                      (8+17)",null,"(28)",null,"(29)",null,"(31)",null,"(32)",null,"(34)                                     (28+31)",null,"(35)                                     (29+32)",null,"(37)                                     (19+28)",null,"(38)                                     (20+29)",null,"(40)                                     (22+31)",null,"(41)                                      (23+32)",null,"(43)                                     (37+40)",null,"(44)                                     (38+41)"]
["VALUATION:",{"$f":"ValuationFlows","v":""},null,"cc",null,"cc",null,"cc",null,"cc",null,"cc",null,"cc",null,"cc",null,"cc",null,"cc",null,"cc",null,"cc",null,"cc",null,"cc",null,"cc",null,"cc",null,"cc",null,"cc",null,"cc",null,"cc",null,"cc",null,"cc",null,"cc",null,"cc",null,"cc",null,"cc",null,"cc",null,"cc",null,"cc",null,"cc",null,"cc"]
["W0","WORLD*"]
["W190","World not allocated"]
["E1","EUROPE "]
["E19","Europe not allocated"]
["AL"," Albania"]
["AD"," Andorra"]
["AT"," Austria*"]
["BY"," Belarus"]
["BE"," Belgium*"]
["BA"," Bosnia and Herzegovina"]
["BG"," Bulgaria*"]
["HR"," Croatia"]
["CY"," Cyprus*,1"]
["CZ"," Czech Republic*"]
["DK"," Denmark*"]
["EE"," Estonia*"]
["FO"," Faroe Islands"]
["FI"," Finland*"]
["FR"," France*"]
["DE"," Germany*"]
["GI"," Gibraltar"]
["GR"," Greece*"]
["GG"," Guernsey"]
["VA"," Holy see (Vatican City State)"]
["HU"," Hungary*"]
["IS"," Iceland*"]
["IE"," Ireland*"]
["IM"," Isle of Man"]
["IT"," Italy*"]
["JE"," Jersey"]
["XK","Kosovo"]
["LV"," Latvia*"]
["LI"," Liechtenstein"]
["LT"," Lithuania*"]
["LU"," Luxembourg*"]
["MK"," Macedonia, the Former Yugoslav Republic of "]
["MT"," Malta"]
["MD"," Moldova"]
["ME"," Montenegro"]
["NL"," Netherlands*"]
["NO"," Norway*"]
["PL"," Poland*"]
["PT"," Portugal*"]
["RO"," Romania*"]
["RU"," Russia*"]
["SM"," San Marino"]
["RS"," Serbia"]
["SK"," Slovakia*"]
["SI"," Slovenia*"]
["ES"," Spain*"]
["SE"," Sweden*"]
["CH"," Switzerland* "]
["TR","Turkey*"]
["UA","Ukraine*"]
["GB"," United Kingdom*"]
["R1","Belgum-Luxembourg (until end 2002)"]
["CS","Serbia and Montenegro (until end 2006)"]
["F1","AFRICA* "]
["F19","Africa not allocated"]
["F4","   Northern Africa"]
["DZ","Algeria*"]
["EG","Egypt*"]
["LY","Libyan Arab Jamahiriya*"]
["MA","Morocco*"]
["TN","Tunisia*"]
["F2"," Other African countries"]
["AO"," Angola"]
["BJ"," Benin"]
["BW"," Botswana"]
["IO"," British Indian Ocean Territory"]
["BF"," Burkina Faso"]
["BI"," Burundi"]
["CM"," Cameroon"]
["CV"," Cape Verde"]
["CF"," Central African Republic"]
["TD"," Chad"]
["KM"," Comoros"]
["CG"," Congo"]
["CI"," Côte d'Ivoire"]
["CD"," Congo, the Democratic Republic of the "]
["DJ"," Djibouti"]
["GQ"," Equatorial Guinea"]
["ER"," Eritrea"]
["ET"," Ethiopia"]
["GA"," Gabon"]
["GM"," Gambia"]
["GH"," Ghana"]
["GN"," Guinea"]
["GW"," Guinea-Bissau"]
["KE"," Kenya"]
["LS"," Lesotho"]
["LR"," Liberia"]
["MG"," Madagascar"]
["MW"," Malawi"]
["ML"," Mali"]
["MR"," Mauritania"]
["MU"," Mauritius"]
["MZ"," Mozambique"]
["NA"," Namibia"]
["NE"," Niger"]
["NG"," Nigeria*"]
["RW"," Rwanda"]
["SH"," St Helena"]
["ST"," Sao Tome & Principe"]
["SN"," Senegal"]
["SC"," Seychelles"]
["SL"," Sierra Leone"]
["SO"," Somalia"]
["ZA"," South Africa*"]
["SD"," Sudan"]
["SS"," South Sudan"]
["SZ"," Swaziland"]
["TZ"," Tanzania, United Republic of"]
["TG"," Togo"]
["UG"," Uganda"]
["ZM"," Zambia"]
["ZW","Zimbabwe"]
["A1","AMERICA "]
["A19","America not allocated"]
["A2","   Northern America"]
["CA","      Canada*"]
["GL","      Greenland"]
["US","      United States*"]
["A5","   Central America and Caribbean countries"]
["AI","      Anguilla"]
["AG","      Antigua and Barbuda"]
["AW","      Aruba"]
["BS","      Bahamas"]
["BB","      Barbados"]
["BZ","      Belize"]
["BM","      Bermuda"]
["BQ","      Bonaire, Saint Eustatius and Saba (from 2011 onwards)"]
["KY","      Cayman Islands"]
["CR","      Costa Rica*"]
["CU","      Cuba"]
["CW","      Curaçao (from 2011 onwards)"]
["DM","      Dominica"]
["DO","      Dominican Republic"]
["SV","      El Salvador"]
["GD","      Grenada"]
["GT","      Guatemala"]
["HT","      Haiti"]
["HN","      Honduras"]
["JM","      Jamaica"]
["MX","      Mexico* "]
["MS","      Montserrat"]
["NI","      Nicaragua"]
["PA","      Panama*"]
["KN","      Saint Kitts and Nevis"]
["LC","      Saint Lucia"]
["VC","      Saint Vincent and the Grenadines"]
["SX","      Sint Maarten (from 2011 onwards)"]
["TT","      Trinidad and Tobago"]
["TC","      Turks and Caicos Islands"]
["VG","      Virgin Islands, British"]
["VI","      Virgin Islands, U.S."]
["AN","      Netherlands Antilles (until end 2010)"]
["A7","   South America"]
["AR","      Argentina*"]
["BO","      Bolivia"]
["BR","      Brazil*"]
["CL","      Chile*"]
["CO","      Colombia*"]
["EC","      Ecuador"]
["FK","      Falkland Islands (Malvinas)"]
["GY","      Guyana"]
["PY","      Paraguay"]
["PE","      Peru*"]
["SR","      Suriname"]
["UY","      Uruguay*"]
["VE","      Venezuela*"]
["S1","ASIA "]
["S19","Asia not allocated"]
["S3","   Near and Middle East countries*"]
["S35","      Gulf Arabian countries"]
["BH","         Bahrain"]
["IQ","         Iraq"]
["KW","         Kuwait*"]
["OM","         Oman"]
["QA","         Qatar"]
["SA","         Saudi Arabia*"]
["AE","         United Arab Emirates*"]
["YE","         Yemen"]
["S37","      Other Near and Middle East countries"]
["AM","         Armenia"]
["AZ","         Azerbaijan"]
["GE","         Georgia"]
["IL","         Israel*"]
["JO","         Jordan*"]
["LB","         Lebanon"]
["PS","         Palestinian Territory, Occupied"]
["SY","         Syrian Arab Republic"]
["S6","Other Asian countries"]
["AF","      Afghanistan"]
["BD","      Bangladesh"]
["BT","      Bhutan"]
["BN","      Brunei Darussalam"]
["KH","      Cambodia (Kampuchea)"]
["CN","      China*"]
["HK","      Hong Kong, China*"]
["IN","      India*"]
["ID","      Indonesia*"]
["IR","      Iran, Islamic Republic of"]
["JP","      Japan*"]
["KZ","      Kazakhstan"]
["KP","      Korea, Democratic People's Republic of (North Korea)"]
["KR","      Korea, Republic of (South Korea)*"]
["KG","      Kyrgyzstan"]
["LA","      Lao People's Democratic Republic"]
["MO","      Macao"]
["MY","      Malaysia*"]
["MV","      Maldives"]
["MN","      Mongolia"]
["MM","      Myanmar"]
["NP","      Nepal"]
["PK","      Pakistan"]
["PH","      Philippines*"]
["SG","      Singapore*"]
["LK","      Sri Lanka"]
["TW","      Chinese Taipei"]
["TJ","      Tajikistan"]
["TH","      Thailand*"]
["TL","      Timor-Leste"]
["TM","      Turkmenistan"]
["UZ","      Uzbekistan"]
["VN","      Viet Nam*"]
["O1","AUSTRALIA, OCEANIA & POLAR REGIONS"]
["O19","Oceania & Polar regions not allocated"]
["AS","American Samoa"]
["AQ","Antarctica"]
["AU","Australia*"]
["BV","Bouvet Island"]
["CX","Christmas Islands"]
["CC","Cocos Islands"]
["CK","Cook Islands"]
["FJ","Fiji"]
["PF","French Polynesia"]
["TF","French Southern Territories"]
["GU","Guam"]
["HM","Heard islands and Mc Donald islands"]
["KI","Kiribati"]
["MH","Marshall Islands"]
["FM","Micronesia, Federated States of"]
["NR","Nauru"]
["NC","New Caledonia"]
["NZ","New Zealand*"]
["NU","Niue"]
["NF","Norfolk Island"]
["MP","Northern Mariana Islands"]
["PW","Palau"]
["PG","Papua New Guinea"]
["PN","Pitcairn"]
["WS","Samoa"]
["SB","Solomon Islands"]
["GS","South Georgia  and the South Sandwich Islands"]
["TK","Tokelau"]
["TO","Tonga"]
["TV","Tuvalu"]
["UM","US Minor Outllying islands"]
["VU","Vanuatu"]
["WF","Wallis and Futuna"]
["ECONOMIC AND MONETARY ZONES"]
["P6","OECD37*  (for 2020)"]
["P5","OECD36*  (for 2018-2019)"]
["P4","OECD35*  (for 2016-2017)"]
["P1","OECD34*  (for 2010-2015)"]
["P00","OECD30*  (until 2009 only)"]
["B6","EU27 (without the United Kingdom)* (from 2020)"]
["B5","EU28* (for 2013-2019)"]
["B4","EU27* (for 2007-2012)"]
["B3","EU25* (for 2004-2006 only)"]
["B2","EU15* (until 2003 only)"]
["R4","ASEAN*"]
["R220","G20 countries*"]
["R221","G20 OECD countries*"]
["R222","G20 Non-OECD ctr.*"]
["F98","MENA (Middle East and North Africa countries)*"]
["R25","Total Official Development Assistance (ODA) recipients*"]
["R251","ODA recipients -Europe*"]
["R252","ODA recipients-Africa*"]
["R253","ODA recipients-America*"]
["R254","ODA recipients-Asia*"]
["R255","ODA recipients-Oceania*"]
["[1] Footnote by Turkey:\n The information in this document with reference to “Cyprus” relates to the southern part of the Island. There is no single authority representing both Turkish and Greek Cypriot people on the Island. Turkey recognizes the Turkish Republic of Northern Cyprus (TRNC). Until a lasting and equitable solution is found within the context of United Nations, Turkey shall preserve its position concerning the “Cyprus” issue. \n Footnote by all the European Union Member States of the OECD and the European Union:\n The Republic of Cyprus is recognized by all members of the United Nations with the exception of Turkey. The information in this document relates to the area under the effective control of the Government of the Republic of Cyprus.\nFootnote by Turkey:\n The information in this document with reference to “Cyprus” relates to the southern part of the Island. There is no single authority representing both Turkish and Greek Cypriot people on the Island. Turkey recognizes the Turkish Republic of Northern Cyprus (TRNC). Until a lasting and equitable solution is found within the context of United Nations, Turkey shall preserve its position concerning the “Cyprus” issue. \n Footnote by all the European Union Member States of the OECD and the European Union:\n The Republic of Cyprus is recognized by all members of the United Nations with the exception of Turkey. The information in this document relates to the area under the effective control of the Government of the Republic of Cyprus.\n"]
["[2] Only for European Union countries"]
["* Priority items to avoid when flagging data for secondary confidentiality. If the secondary confidentiality checking exercise is too burdensome for reporting the full GEO breakdown for FDI instruments and for series of SPEs/excluding resident SPE, the priority items should be reported while the other items can be flagged as non-publishable, unless they play a significant role in total FDI. "]

{"sheet":"2-INC-IND","index":14,"n_rows":94,"n_cols":62,"rows_kept":94,"cut":false,"hidden":false,"merged":[[3,60,3,61],[3,50,3,51],[3,52,3,53],[3,54,3,55],[3,56,3,57],[1,2,1,13],[1,26,1,37],[2,26,2,29],[2,30,2,33],[3,22,3,23],[3,24,3,25],[3,16,3,17],[3,18,3,19],[3,20,3,21],[3,36,3,37],[3,2,3,3],[3,4,3,5],[3,6,3,7],[3,8,3,9],[2,18,2,21],[2,2,2,5],[1,50,1,61],[2,50,2,53],[2,54,2,57],[2,58,2,61],[3,26,3,27],[3,28,3,29],[3,30,3,31],[3,32,3,33],[3,34,3,35],[3,48,3,49],[3,58,3,59],[3,38,3,39],[3,40,3,41],[3,42,3,43],[3,44,3,45],[3,46,3,47],[2,6,2,9],[2,10,2,13],[3,10,3,11],[3,12,3,13],[3,14,3,15],[2,34,2,37],[2,22,2,25],[2,42,2,45],[2,46,2,49],[1,38,1,49],[2,38,2,41],[1,14,1,25],[2,14,2,17]]}
["                        ","QUESTIONNAIRE 2-INC-IND  Foreign Direct Investment INCOME by industry classification (ISIC 4) (Directional Principle)",null,null,null,null,null,null,null,null,null,null,null,null,null,null,null,null,null,null,null,null,null,null,null,null,null,null,null,null,null,null,null,null,null,null,null,null,null,null,null,null,null,null,null,null,null,null,null,null,null,null,null,null,null,null,null,null,null,null,"OECD"]
["COUNTRY:",{"$f":"Country","v":""},"INCOME ON EQUITY-DIVIDENDS (D42S)",null,null,null,null,null,null,null,null,null,null,null,"INCOME ON EQUITY-REINVESTED EARNINGS (D43S)",null,null,null,null,null,null,null,null,null,null,null,"TOTAL INCOME ON EQUITY (D4S)",null,null,null,null,null,null,null,null,null,null,null,"INCOME ON DEBT (INTERESTS) (D4Q)",null,null,null,null,null,null,null,null,null,null,null,"TOTAL FDI INCOME (D4P)"]
["YEAR:  ",{"$f":"Year","v":2020},"Excl. Res SPEs (ROU)\n",null,null,null,"Res SPEs (RSP)\n",null,null,null,"All Entities (ALL)\n",null,null,null,"Excl. Res SPEs (ROU)\n",null,null,null,"Res SPEs (RSP)\n",null,null,null,"All Entities (ALL)\n",null,null,null,"Excl. Res SPEs (ROU)\n",null,null,null,"Res SPEs (RSP)\n",null,null,null,"All Entities (ALL)\n",null,null,null,"Excl. Res SPEs (ROU)\n",null,null,null,"Res SPEs (RSP)\n",null,null,null,"All Entities (ALL)\n",null,null,null,"Excl. Res SPEs (ROU)\n",null,null,null,"Res SPEs (RSP)\n",null,null,null,"All Entities (ALL)\n"]
["CURRENCY:  ",{"$f":"Currency","v":0},"Income on outward FDI",null,"Income on inward FDI",null,"Income on outward FDI",null,"Income on inward FDI",null,"Income on outward FDI",null,"Income on inward FDI",null,"Income on outward FDI",null,"Income on inward FDI",null,"Income on outward FDI",null,"Income on inward FDI",null,"Income on outward FDI",null,"Income on inward FDI",null,"Income on outward FDI",null,"Income on inward FDI",null,"Income on outward FDI",null,"Income on inward FDI",null,"Income on outward FDI",null,"Income on inward FDI",null,"Income on outward FDI",null,"Income on inward FDI",null,"Income on outward FDI",null,"Income on inward FDI",null,"Income on outward FDI",null,"Income on inward FDI",null,"Income on outward FDI",null,"Income on inward FDI",null,"Income on outward FDI",null,"Income on inward FDI",null,"Income on outward FDI",null,"Income on inward FDI"]
["UNITS:           ","MILLIONS","IO",null,"II",null,"IO",null,"II",null,"IO",null,"II",null,"IO",null,"II",null,"IO",null,"II",null,"IO",null,"II",null,"IO",null,"II",null,"IO",null,"II",null,"IO",null,"II",null,"IO",null,"II",null,"IO",null,"II",null,"IO",null,"II",null,"IO",null,"II",null,"IO",null,"II",null,"IO",null,"II"]
["STATISTICAL UNIT:",{"$f":"StatUnit","v":""},"(1)",null,"(2)",null,"(4)",null,"(5)",null,"(7)                                 (1+4)",null,"(8)                                 (2+5)",null,"(10)",null,"(11)",null,"(13)",null,"(14)",null,"(16)                                       (10+13)",null,"(17)                                       (11+14)",null,"(19)                                      (1+10)",null,"(20)                          (2+11)",null,"(22)                                     (4+13)",null,"(23)                            (5+14)",null,"(25)                                     (7+16)",null,"(26)                                      (8+17)",null,"(28)",null,"(29)",null,"(31)",null,"(32)",null,"(34)                                     (28+31)",null,"(35)                                     (29+32)",null,"(37)                                     (19+28)",null,"(38)                                     (20+29)",null,"(40)                                     (22+31)",null,"(41)                                      (23+32)",null,"(43)                                     (37+40)",null,"(44)                                     (38+41)"]
["VALUATION:",{"$f":"ValuationFlows","v":""},null,"cc",null,"cc",null,"cc",null,"cc",null,"cc",null,"cc",null,"cc",null,"cc",null,"cc",null,"cc",null,"cc",null,"cc",null,"cc",null,"cc",null,"cc",null,"cc",null,"cc",null,"cc",null,"cc",null,"cc",null,"cc",null,"cc",null,"cc",null,"cc",null,"cc",null,"cc",null,"cc",null,"cc",null,"cc",null,"cc"]
["ACTIVITY ALLOCATION:",{"$f":"CONCATENATE(\"OUT: \",EcoActOutflows,\"    / IN: \",EcoActInflows)","v":"OUT: Direct investment enterprise    / IN: Direct investment enterprise"},{"$f":"EcoActOutflowsCode","v":2},null,{"$f":"EcoActInflowsCode","v":2},null,{"$f":"EcoActOutflowsCode","v":2},null,{"$f":"EcoActInflowsCode","v":2},null,{"$f":"EcoActOutflowsCode","v":2},null,{"$f":"EcoActInflowsCode","v":2},null,{"$f":"EcoActOutflowsCode","v":2},null,{"$f":"EcoActInflowsCode","v":2},null,{"$f":"EcoActOutflowsCode","v":2},null,{"$f":"EcoActInflowsCode","v":2},null,{"$f":"EcoActOutflowsCode","v":2},null,{"$f":"EcoActInflowsCode","v":2},null,{"$f":"EcoActOutflowsCode","v":2},null,{"$f":"EcoActInflowsCode","v":2},null,{"$f":"EcoActOutflowsCode","v":2},null,{"$f":"EcoActInflowsCode","v":2},null,{"$f":"EcoActOutflowsCode","v":2},null,{"$f":"EcoActInflowsCode","v":2},null,{"$f":"EcoActOutflowsCode","v":2},null,{"$f":"EcoActInflowsCode","v":2},null,{"$f":"EcoActOutflowsCode","v":2},null,{"$f":"EcoActInflowsCode","v":2},null,{"$f":"EcoActOutflowsCode","v":2},null,{"$f":"EcoActInflowsCode","v":2},null,{"$f":"EcoActOutflowsCode","v":2},null,{"$f":"EcoActInflowsCode","v":2},null,{"$f":"EcoActOutflowsCode","v":2},null,{"$f":"EcoActInflowsCode","v":2},null,{"$f":"EcoActOutflowsCode","v":2},null,{"$f":"EcoActInflowsCode","v":2}]
["A","AGRICULTURE, FORESTRY AND FISHING (Section A) "]
["B","MINING AND QUARRYING (Section B)"]
["B06_09","Of which:      Extraction of crude petroleum and gas; mining support services"]
["A_B","TOTAL PRIMARY SECTOR (Sections A and B)"]
["C","MANUFACTURING (Section C) "]
["C10T12","Food products, beverage and tobacco products"]
["C13_14","Textiles and wearing apparel"]
["C16T18","Manufacture of wood, paper, and their products; printing and reproduction or recorded media"]
["C13T18X15","[TOTAL textiles + wood activities ](C13_14+C16T18)"]
["C19","Coke and refined petroleum products"]
["C20","Manufacture of chemicals and chemical products"]
["C21","Pharmaceuticals products and preparation"]
["C22","Rubber and plastic products"]
["C19T22","[TOTAL petroleum, chemical, pharmaceuticals, rubber and plastic products] (C19+C20+C21+C22) "]
["C24_25","Basic metal and fabricated metal products"]
["C26","Computer, electronic and optical products"]
["C262"," Of which: Computers and peripheral equipment"]
["C263_264","      Communication equipment and consumer electronics"]
["C265_266","       Instrument and appliances for measuring, testing and navigation; watches and clock; irradiation, electromedical and electrotherapeutic equipment"]
["C28","Machinery and equipment n. e. c"]
["C24T28X27","[TOTAL metal, computer and machinery] (C24_C25+C26+C28)"]
["C29","Motor vehicles, trailers and semi-trailers"]
["C30","Other transport equipments"]
["C303","Of which:   Manufacture of aircraft and spacecraft"]
["C29_30","[TOTAL vehicles and other transport equipment] (C29+C30)"]
["C_OTH","Other manufacturing"]
["D35","ELECTRICITY, GAS, STEAM AND AIR CONDITIONING SUPPLY (Section D)"]
["E","WATER SUPPLY, SEWERAGE, WASTE MANAGEMENT AND REMEDIATION ACTIVITIES (Section E)"]
["E36","Water collection, treatment and supply"]
["E37T39","Sewerage, waste management and remediation activities"]
["F","CONSTRUCTION (Section F)"]
["G","WHOLESALE AND RETAILTRADE; REPAIR OF MOTOR VEHICLES AND MOTOR CYCLES (Section G)"]
["G45","Wholesale and retail trade and repair of motor vehicles and motorcycles"]
["G46","Wholesale trade, except of motor vehicles and motor cycles"]
["G47","Retail trade, except of motor vehicles and motor cycles"]
["H","TRANSPORTATION AND STORAGE (Section H)"]
["H49","Land transport and transport via pipelines"]
["H50","Water transport"]
["H51","Air transport"]
["H52","Warehousing and support activities for transportation"]
["HX53","[TOTAL transport and storage] (H49+H50+H51+H52)"]
["H53","Post and courier activities"]
["I","ACCOMODATION AND FOOD SERVICE ACTIVITIES (Section I)"]
["J","INFORMATION AND COMMUNICATION (Section J) "]
["J59_60","Motion picture, video and TV programme production, sound recording and music publishing activities; programming and broadcasting activities"]
["J61","Telecommunications"]
["J58_62_63","Other information and communication activities"]
["K","FINANCIAL AND INSURANCE ACTIVITIES (Section K) "]
["K64","Financial services activities, except insurance and pension funding"]
["K641","Of which:   Monetary intermediation"]
["K642","                        Activities of holding companies"]
["K643","                       Trusts, funds and similar financial entities"]
["K65","Insurance, reinsurance and pension funding, except compulsory social security"]
["K66","Activities auxiliary to financial services and insurance activities"]
["L","REAL ESTATE ACTIVITIES (Section L) "]
["M","PROFESSIONAL, SCIENTIFIC AND TECHNICAL ACTIVITIES (Section M)"]
["M69","Legal and accounting activities"]
["M691","     Legal activities"]
["M692","     Accounting, bookkeeping and auditing activities, tax consultancy"]
["M70","Activities of head offices; management and consultancy activities "]
["M701","      Activities of head offices"]
["M702","      Management consultancy activities"]
["M71","Architecture and engineering activities, technical testing and analysis"]
["M72","Scientific research and development"]
["M73","Advertising and market research"]
["M731","     Advertising"]
["M732","     Market research and public opinion polling"]
["M74_75","Other professional, scientific and technical activities"]
["N","ADMINISTRATIVE AND SUPPORT SERVICE ACTIVITIES (Section N)"]
["N77","Rental and leasing activities"]
["N78T82","Other administrative and support services activities"]
["N79"," Of which: Travel agency, tour operator reservation service and related activities"]
["P85","EDUCATION (Section P)"]
["Q","HUMAN HEALTH AND SOCIAL WORK ACTIVITIES (Section Q)"]
["R","ARTS, ENTERTAINMENT AND RECREATION (Section R)"]
["R90","Creative, arts and entertainment activities"]
["R91","Libraries, archives, museums and other cultural activities"]
["R92_93","Sports activities and amusement and recreation activities; gambling and betting activities"]
["O_T_U","Public administration; activities of households and of extraterritorial organisations  (Section O, T, U)"]
["S","OTHER SERVICE ACTIVITIES (Section S)"]
["S94","Activities of membership organisations"]
["S95_96","Repair of computers and personal and household goods, other services"]
["GTU","TOTAL SERVICES (Sections G to U)"]
["_X","Unallocated"]
["PRV_RE","Priv. purchase & sales of real estate"]
["FDI_T","TOTAL"]